Cogmind - Beta 16.1 @@@ ROGUE MODE // 2026.01.20 @ 17:41:48 Player: Selene Result: Destroyed by MAIN.C with High-powered Disruptor Cannon Performance ------------- Evolutions (9) 4500 Regions Visited (30) 6000 Robots Destroyed (197) 985 Value Destroyed (9784) 9784 Prototype IDs (58) 1160 Alien Tech Used (0) 0 Bonus (13125) 13125 TOTAL SCORE: 35554 Bonus ------- High Alert Combat Kills 285 Follower Combat Kills 1723 Entered Garrisons 1600 Used RIF Installer 4000 Aligned with FarCom 300 Met Data Miner 300 Met MAIN.C 5000 Friendly Fire -83 Cogmind --------- Core Integrity 0/1600 Matter 273/300 Energy 100/100 System Corruption 21% Temperature Cool (18) Movement Core (50) Location -1/Command Parts ------- > --- POWER (2) -------- (None) > --- PROPULSION (8) --- (None) > --- UTILITY (10) ----- Spectral Analyzer Graphene Brace Relay Coupler [Sentry] (31) > --- WEAPON (5) ------- Kinetic Spear > --- INVENTORY (5) ---- Light Quantum Reactor Advanced Transmission Jammer Advanced Point Defense System Enhanced Nova Cannon Mini Smartbomb Launcher Peak State ------------ > --- POWER ------------ Micro Antimatter Reactor Micro Antimatter Reactor > --- PROPULSION ------- Field Propulsion Array Field Propulsion Array Improved Diametric Drive Improved Diametric Drive Impulse Thruster Array > --- UTILITY ---------- Advanced Cooling System Medium Storage Unit Spectral Analyzer Advanced Reaction Control System Layered Medium Armor Plating Graphene Brace Relay Coupler [Swarmer] Relay Coupler [Grunt] Relay Coupler [Sentry] Relay Coupler [Sentry] > --- WEAPON ----------- Mini Smartbomb Launcher Lance Kinetic Spear Kinetic Spear Force Lance > --- INVENTORY -------- Light Quantum Reactor Field Propulsion Array Electron Diverter Advanced Force Booster Advanced Transmission Jammer Advanced Point Defense System Enhanced Nova Cannon Mini Smartbomb Launcher [Rating: 168] Favorites ----------- Power Nuclear Core Engine Light Ion Engine Power Core Nuclear Core Reactor Light Antimatter Reactor Propulsion Light Treads Treads Light Treads Leg Armored Leg Wheel Armored Huge Wheel Hover Unit Combat Airjet Flight Unit Improved Diametric Drive Utility High-capacity Storage Unit Device Improved Heat Sink Storage High-capacity Storage Unit Processor Advanced Targeting Computer Hackware Relay Coupler [Sentry] Protection Hardened Medium Armor Plating Weapon Field Laser Energy Gun Field Laser Energy Cannon Heavy Phase Cannon Ballistic Gun KE Penetrator Ballistic Cannon Assault Cannon Launcher Improved Grenade Launcher Special Weapon Remote Datajack Impact Weapon Flail Slashing Weapon Katana Piercing Weapon Kinetic Spear Special Melee Weapon Improved Datajack Build | -11 -10 -10 -10 -9 -8 -8 -8 -8 -7 -7 -7 -7 -6 -6 -6 -6 -6 -5 -5 -5 -4 -3 -3 -3 -2 -2 -1 -1 -1 -1 ------- Run | Yrd Mat Min Exi Min Mat Gar Mat Gar Fac Was Fac Gar Fac Gar Fac Low Dat Pro Fac Gar Fac Res Gar Res Res Gar Acc Gar Acc Com Slots Evolved 18 | . . . . . 4 . . . 2 . . . 2 . . . . . 2 . 2 2 . . 2 . 2 . . . Power 1 | . . . . . . . . . . . . . . . . . . . . . 1 . . . . . . . . . Propulsion 6 | . . . . . 1 . . . 1 . . . . . . . . . 1 . 1 1 . . 1 . . . . . Utility 8 | . . . . . 2 . . . 1 . . . . . . . . . 1 . . 1 . . 1 . 2 . . . Weapon 3 | . . . . . 1 . . . . . . . 2 . . . . . . . . . . . . . . . . . Parts Attached 285 | 7 13 6 2 2 51 8 12 4 7 6 6 12 3 5 21 5 . 6 11 10 12 13 12 15 12 3 5 3 1 12 Power 27 | 1 2 . . . 6 1 . 1 . 1 . 1 . 1 4 . . 1 1 . . 2 . . 4 . 1 . . . Engine 9 | 1 2 . . . 4 . . . . . . . . 1 1 . . . . . . . . . . . . . . . Core 9 | . . . . . 2 1 . 1 . 1 . 1 . . 1 . . 1 1 . . . . . . . . . . . Reactor 9 | . . . . . . . . . . . . . . . 2 . . . . . . 2 . . 4 . 1 . . . Propulsion 65 | 2 3 2 . 1 13 2 3 . 2 . 1 5 . 1 5 . . 2 1 4 1 5 3 2 2 1 . 1 . 3 Treads 25 | 2 1 . . . 8 2 3 . 2 . . 5 . 1 1 . . . . . . . . . . . . . . . Leg 12 | . 1 2 . . 2 . . . . . . . . . 4 . . 2 1 . . . . . . . . . . . Wheel 5 | . 1 . . 1 2 . . . . . 1 . . . . . . . . . . . . . . . . . . . Hover 10 | . . . . . 1 . . . . . . . . . . . . . . 4 1 3 . 1 . . . . . . Flight 13 | . . . . . . . . . . . . . . . . . . . . . . 2 3 1 2 1 . 1 . 3 Utility 117 | 2 5 3 . . 16 4 6 2 3 3 4 4 2 1 7 2 . 2 5 5 7 2 7 7 3 2 3 2 1 7 Device 41 | 1 1 . . . 7 3 3 1 . 2 . 1 1 . 2 1 . 1 1 . 1 2 1 3 1 . 2 . 1 5 Storage 7 | 1 1 1 . . 3 . . . . . . . . . . . . . . . . . . 1 . . . . . . Processor 11 | . . . . . 2 . 1 . . . 2 . . . 1 1 . . 1 . . . 1 1 . . . . . 1 Hackware 34 | . . . . . . 1 1 1 1 . 1 2 1 1 4 . . 1 2 5 3 . 4 1 1 2 1 1 . . Protection 24 | . 3 2 . . 4 . 1 . 2 1 1 1 . . . . . . 1 . 3 . 1 1 1 . . 1 . 1 Artifact . | . . . . . . . . . . . . . . . . . . . . . . . . . . . . . . . Weapon 76 | 2 3 1 2 1 16 1 3 1 2 2 1 2 1 2 5 3 . 1 4 1 4 4 2 6 3 . 1 . . 2 Energy Gun 20 | 1 . . . . 4 1 2 . . 1 1 1 . . 1 2 . . 3 . . . 2 . 1 . . . . . Energy Cannon 6 | . . . . . . . . . . 1 . . . . 2 . . . . . . 2 . 1 . . . . . . Ballistic Gun 22 | 1 2 1 2 1 5 . . . 2 . . 1 . 2 . 1 . . . 1 1 . . 2 . . . . . . Ballistic Cannon 5 | . 1 . . . 2 . . . . . . . . . . . . . . . 1 1 . . . . . . . . Launcher 6 | . . . . . 3 . . 1 . . . . . . . . . . 1 . . . . . 1 . . . . . Special Weapon 4 | . . . . . . . 1 . . . . . . . 1 . . 1 . . . 1 . . . . . . . . Impact Weapon 2 | . . . . . 1 . . . . . . . . . . . . . . . 1 . . . . . . . . . Slashing Weapon 4 | . . . . . 1 . . . . . . . . . 1 . . . . . 1 . . . 1 . . . . . Piercing Weapon 4 | . . . . . . . . . . . . . . . . . . . . . . . . 2 . . . . . 2 Special Melee Weapon 3 | . . . . . . . . . . . . . 1 . . . . . . . . . . 1 . . 1 . . . Unidentified Prototypes 13 | . . . . . 1 . 1 . . . . 1 1 . . . . . 1 . . 1 1 2 2 . . . . 2 Parts Lost 67 | . 4 . . . 9 1 . . . . . 1 . 4 6 . . 1 1 1 3 4 8 1 . 1 . 4 2 16 Power 8 | . . . . . 2 . . . . . . 1 . . 1 . . 1 . . 1 . . 1 . . . . . 1 Propulsion 24 | . 2 . . . 3 . . . . . . . . . . . . . . 1 . 3 5 . . 1 . 1 . 8 Utility 23 | . 1 . . . 2 1 . . . . . . . 3 2 . . . . . 2 1 2 . . . . 3 1 5 Weapon 12 | . 1 . . . 2 . . . . . . . . 1 3 . . . 1 . . . 1 . . . . . 1 2 Highest Loss Streak 15 | . 4 . . . 2 1 . . . . . 1 . 1 4 . . 1 1 1 3 4 7 1 . 1 . 2 2 15 To Critical Strikes 1 | . 1 . . . . . . . . . . . . . . . . . . . . . . . . . . . . . Average Backups 15 | 1 12 15 15 16 19 19 18 18 15 14 13 13 14 13 15 16 16 15 15 15 15 15 13 7 9 9 9 9 8 8 Power 1 | . 1 1 1 1 . 2 1 1 1 . 1 . 1 2 1 1 1 . . 1 . 1 . . . 1 1 1 1 1 Propulsion 3 | . 2 4 3 3 5 6 5 6 3 3 3 2 2 2 2 4 4 4 4 3 . 1 2 . 3 3 3 2 2 2 Utility 6 | . 5 6 5 7 5 5 5 5 5 5 4 6 7 6 7 6 6 5 6 7 10 9 8 5 4 4 4 4 3 3 Weapon 3 | . 3 4 5 5 7 6 5 5 4 3 3 2 2 1 2 2 3 2 2 2 2 2 2 2 . 1 1 2 2 2 Tool/Special . | . . . . . . . . . . . . . . . . . . . . . . . . . . . . . . . Unused Backups 78 | . 4 3 . . 13 3 1 3 1 3 . 4 . . 4 . . . 5 . 5 3 4 7 6 2 . . . 7 Power 8 | . . . . . 2 1 1 . . . . 1 . . 2 . . . . . . . . . . . . . . 1 Propulsion 12 | . . . . . 1 . . 2 1 2 . 2 . . 1 . . . 2 . . . . . . 1 . . . . Utility 38 | . 2 3 . . 2 1 . 1 . 1 . 1 . . 1 . . . 3 . 4 3 4 4 4 1 . . . 3 Weapon 20 | . 2 . . . 8 1 . . . . . . . . . . . . . . 1 . . 3 2 . . . . 3 Tool/Special . | . . . . . . . . . . . . . . . . . . . . . . . . . . . . . . . Average Slot Usage (%) 91 | . 99 100 73 100 98 99 99 100 92 91 95 88 76 76 89 98 77 99 99 84 73 74 74 84 87 84 84 82 78 80 Engine 3 | . 14 14 14 14 5 . . . . . . . . 4 2 . . . . . . . . . . . . . . . Core 3 | . . . . . 3 8 9 9 7 7 7 6 6 1 . 6 6 3 1 2 3 2 . . 2 . . . . . Reactor 1 | . . . . . . . . . . . . . . . 2 . . 2 3 2 1 3 4 7 5 8 8 8 8 7 Treads 12 | . 20 . . . 21 27 27 27 30 30 28 14 13 13 6 . . . . . . . . . . . . . . . Leg 7 | . 2 27 28 27 3 . . . . . . . . . 13 26 26 26 29 11 . . . . . . . . . . Hover 1 | . . . . . . . . . . . . . . . . . . . . 12 25 26 16 . . . . . . . Flight 1 | . . . . . . . . . . . . . . . . . . . . . . 1 12 24 22 21 20 19 20 19 Device 8 | . 8 13 14 . 10 8 8 8 7 7 7 7 6 11 9 6 6 5 6 5 3 2 7 2 7 8 11 11 9 12 Storage 8 | . 14 14 14 14 9 9 9 9 7 7 7 7 6 6 6 6 6 6 5 5 5 4 2 2 4 4 4 4 4 3 Processor 4 | . . . . . 6 9 9 9 1 . 4 7 6 6 5 5 6 6 5 5 5 4 4 4 4 4 4 4 4 4 Hackware 5 | . . . . . . . 1 . 5 2 . 6 5 . 9 13 13 13 11 16 14 14 15 20 13 13 16 16 16 15 Protection 5 | . 5 . . 14 9 9 7 8 7 12 13 6 6 5 . . . . 3 . 1 6 1 1 4 4 4 4 2 3 Energy Gun 7 | . 2 . . . 10 16 17 15 8 15 16 9 4 5 4 11 3 13 9 5 . . 1 3 2 . . . . . Energy Cannon 1 | . . . . . . . . . . 3 2 3 4 2 2 . . . 4 2 . 1 . . . . . . . . Ballistic Gun 6 | . 19 14 1 18 11 . . . 6 . . 4 4 8 9 12 1 10 1 3 6 . . 2 3 . . . . . Ballistic Cannon 2 | . 6 14 1 9 3 5 4 6 . . . . . . . . . . . . . . . . . . . . . . Special Weapon 1 | . . . . . . . . . 4 1 2 2 3 4 5 . . 2 5 5 4 3 3 . . . . . . . Slashing Weapon 1 | . . . . . . 4 4 4 1 1 . . . . 5 6 6 6 4 . . 1 . . . 2 . . . . Peak Build Rating 168 | 7 12 12 13 13 32 32 34 34 41 53 61 80 121 123 86 75 75 77 92 132 134 110 127 147 154 151 161 156 152 168 Average Rating 55 | 5 9 11 10 12 23 31 32 32 40 46 53 66 90 83 75 74 60 75 88 85 85 94 99 129 150 147 153 153 148 153 On Entrance 71 | . 7 11 11 13 13 32 30 34 32 40 53 59 79 85 85 68 75 75 76 92 83 79 96 121 142 148 143 153 150 145 Avg Prop Armor Cover (%) 7 | . 9 12 . 6 12 . . . . . 14 9 . . 12 . . . . . . 3 4 1 . 1 . . . 10 Naked Turns . | . . . . . . . . . . . . . . . . . . . . . . . . . . . . . . . Heaviest Build 126 | 13 54 50 51 53 67 68 67 68 72 91 91 84 119 126 82 66 65 69 88 88 115 86 59 52 57 56 55 55 46 60 Greatest Support 162 | 40 40 26 26 26 60 60 60 60 80 80 80 162 150 150 150 66 66 72 88 88 72 86 69 52 60 60 59 60 60 60 Greatest Overweight (x) 6 | . 2 2 1 4 6 1 1 1 . 1 2 2 . . 1 . . . . 1 1 1 1 . . . . . . . Average Overweight (x) . | . 1 1 . 1 1 1 . . . . . 1 . . . . . . . . . . . . . . . . . . Largest Inventory Capacity 20 | 8 20 20 20 20 20 20 20 20 20 20 20 20 20 20 20 20 20 20 20 20 20 20 20 10 10 10 10 10 10 10 Average Capacity 18 | 7 16 15 18 20 19 20 20 20 20 20 20 20 20 20 20 20 20 20 20 20 20 20 16 8 10 10 10 10 10 9 Most Carried 20 | 3 20 20 19 20 20 20 20 20 20 20 20 20 20 20 20 20 20 20 20 20 20 20 20 10 10 10 10 10 9 10 Average Carried 18 | 1 13 15 17 18 19 19 19 19 19 19 19 19 19 19 19 19 20 19 19 19 19 19 14 7 9 9 9 9 8 9 Final Capacity 20 | 8 20 15 20 20 20 20 20 20 20 20 20 20 20 20 20 20 20 20 20 20 20 20 5 10 10 10 10 10 10 5 Final Carried 20 | 3 20 15 17 20 20 20 20 20 20 20 20 20 20 20 20 20 20 20 19 20 20 18 5 10 10 10 10 9 8 5 Class Distribution -------------------- 26% | Mutant 13% | Scavenger-Skirmisher 8% | Bothacker-Skirmisher 8% | Skirmisher 8% | Bothacker-Tank 7% | Scavenger-Tank 4% | Scientist-Skirmisher 4% | Sprinter 3% | Botlord-Mutant 3% | Scavenger-Mutant Dominant Class ---------------- Mutant | -10/Materials Mutant | -10/Mines Mutant | -10/Exiles Mutant | -9/Mines Scavenger-Skirmisher | -8/Materials Mutant | -8/Garrison Mutant | -8/Materials Scientist-Skirmisher | -8/Garrison Scavenger-Skirmisher | -7/Factory Scavenger-Tank | -7/Waste Scavenger-Tank | -7/Factory Skirmisher | -7/Garrison Bothacker-Tank | -6/Factory Scavenger-Tank | -6/Garrison Bothacker-Skirmisher | -6/Factory Bothacker-Skirmisher | -6/Lower Caves Bothacker-Mutant | -6/Data Miner Bothacker-Skirmisher | -5/Proximity Caves Scavenger-Skirmisher | -5/Factory Bothacker-Skirmisher | -5/Garrison Botlord-Mutant | -4/Factory Bothacker-Mutant | -3/Research Botlord-Mutant | -3/Garrison Hacker-Sprinter | -3/Research Sprinter | -2/Research Botlord-Sprinter | -2/Garrison Botlord-Sprinter | -1/Access Botlord-Sprinter | -1/Garrison Botlord-Sprinter | -1/Access Sprinter | -1/Command Resources | -11 -10 -10 -10 -9 -8 -8 -8 -8 -7 -7 -7 -7 -6 -6 -6 -6 -6 -5 -5 -5 -4 -3 -3 -3 -2 -2 -1 -1 -1 -1 ----------- Run | Yrd Mat Min Exi Min Mat Gar Mat Gar Fac Was Fac Gar Fac Gar Fac Low Dat Pro Fac Gar Fac Res Gar Res Res Gar Acc Gar Acc Com Matter Collected 10861 | 279 398 308 48 547 1375 382 585 230 70 289 56 648 558 891 803 163 . 206 60 311 568 453 577 261 150 270 . 80 . 295 Remotely 443 | . . . . . . . . . . . . . . . . . . . . . 378 65 . . . . . . . . Salvage Created 8834 | 43 518 105 . . 1610 633 609 364 70 . 27 1221 223 813 391 . . 178 314 . 210 212 . 497 294 71 . 139 . 292 Parts 396 | 6 21 8 . . 96 23 30 17 2 . 3 44 7 28 24 . . 5 17 . 5 8 . 14 16 7 . 6 . 9 Haulers Intercepted 9 | . 2 . . . 4 . 1 . . . . . . . 1 . . . . . . . . 1 . . . . . . Recyclers Shooed 11 | . 4 . . . . . . . . . . . 4 . 3 . . . . . . . . . . . . . . . Parts Field Recycled . | . . . . . . . . . . . . . . . . . . . . . . . . . . . . . . . Retrieved Matter . | . . . . . . . . . . . . . . . . . . . . . . . . . . . . . . . Parts Self-Destructed 11 | . . . . . . . . . . . . . . . . 3 . 8 . . . . . . . . . . . . Prevented 1 | . . . . . . . . . . . . . . . . 1 . . . . . . . . . . . . . . Parts Restored . | . . . . . . . . . . . . . . . . . . . . . . . . . . . . . . . Kills | -11 -10 -10 -10 -9 -8 -8 -8 -8 -7 -7 -7 -7 -6 -6 -6 -6 -6 -5 -5 -5 -4 -3 -3 -3 -2 -2 -1 -1 -1 -1 ------- Run | Yrd Mat Min Exi Min Mat Gar Mat Gar Fac Was Fac Gar Fac Gar Fac Low Dat Pro Fac Gar Fac Res Gar Res Res Gar Acc Gar Acc Com Combat Hostiles Destroyed 136 | . 9 5 . . 34 11 8 11 1 . 3 13 2 14 4 . . 2 6 . . 1 . . 5 5 . . . 2 Melee 1 | . . . . . . . . . . . . . . . 1 . . . . . . . . . . . . . . . Guns 59 | . 4 2 . . 20 4 7 4 1 . . 5 2 5 2 . . 2 1 . . . . . . . . . . . Cannons 22 | . 5 3 . . 3 1 1 4 . . . 1 . 1 1 . . . 1 . . 1 . . . . . . . . AOE 53 | . . . . . 11 6 . 3 . . 3 6 . 8 . . . . 4 . . . . . 5 5 . . . 2 Classes Destroyed 18 | 1 7 . . . 7 . . 1 . . . . . 1 . . . . . . . . . . . . . . . 1 Worker 18 | . 1 . . . 6 . 2 . . . . . . . 6 . . . 1 . 1 . . . . . . . . 1 Builder 3 | . . . . . 1 . . . . . . . . . . . . . 1 . 1 . . . . . . . . . Tunneler 3 | 2 . . . . 1 . . . . . . . . . . . . . . . . . . . . . . . . . Hauler 9 | . 2 . . . 4 . 1 . . . . . . . 1 . . . . . . . . 1 . . . . . . Recycler 13 | . 2 . . . 1 . 2 . . . . . 1 . . . . . . . 1 1 . 3 1 . . . . 1 Operator 3 | . . . . . 1 . . . . . . . . . . . . . . . . . . 1 1 . . . . . Drone 1 | . . . . . . . . . . . . . . . . . . . . . . . . . . . . . . 1 Watcher 12 | . 1 . . . 3 . 1 . . . . . . . . . . . 2 . 1 . . . 1 . . . . 3 Swarmer 41 | . 3 3 . . 6 3 . 3 . . 3 6 . 3 . . . 1 . . . . . . 5 5 . . . . Cutter 3 | . . . . . . . . . . . . . . 2 . . . . . . . . . . . . . . . 1 Grunt 56 | . 3 2 . . 15 8 6 5 . . . 5 1 6 1 . . . 4 . . . . . . . . . . . Brawler 1 | . . . . . 1 . . . . . . . . . . . . . . . . . . . . . . . . . Duelist 2 | . . . . . 2 . . . . . . . . . . . . . . . . . . . . . . . . . Protector 1 | . . . . . 1 . . . . . . . . . . . . . . . . . . . . . . . . . Sentry 13 | . . . . . 7 . 2 . 1 . . 2 . . . . . . 1 . . . . . . . . . . . Hunter 7 | . . . . . 2 . . 1 . . . . . 3 . . . 1 . . . . . . . . . . . . Programmer 9 | . . . . . . . . 2 . . . . 1 1 3 . . . 1 . . 1 . . . . . . . . Subdweller 3 | . 3 . . . . . . . . . . . . . . . . . . . . . . . . . . . . . Best Kill Streak 11 | 1 4 3 . . 11 6 2 4 1 . 3 3 2 5 3 . . 1 5 . 1 1 . 2 5 5 . . . 2 Combat Bots Only 6 | . 3 3 . . 5 6 2 4 1 . 3 3 2 5 1 . . 1 4 . . 1 . . 5 5 . . . 1 Max Kills in Single Turn 5 | 1 1 2 . . 5 2 1 1 1 . 2 3 1 2 2 . . 1 2 . 1 1 . 1 5 2 . . . 1 Gunslinging 1 | . . . . . 1 . . . . . . . . . . . . . . . . . . . . . . . . . Exploded 5 | . . . . . 3 2 . 1 . . 2 3 . 2 . . . . 1 . . . . . 5 2 . . . 1 Melee 1 | . . . . . . . . . . . . . . . 1 . . . . . . . . . . . . . . . Uniques/NPCs Destroyed . | . . . . . . . . . . . . . . . . . . . . . . . . . . . . . . . Combat | -11 -10 -10 -10 -9 -8 -8 -8 -8 -7 -7 -7 -7 -6 -6 -6 -6 -6 -5 -5 -5 -4 -3 -3 -3 -2 -2 -1 -1 -1 -1 -------- Run | Yrd Mat Min Exi Min Mat Gar Mat Gar Fac Was Fac Gar Fac Gar Fac Low Dat Pro Fac Gar Fac Res Gar Res Res Gar Acc Gar Acc Com Hostile Shots Fired 1363 | . 110 34 . 4 158 32 36 28 27 . 13 95 18 73 126 . . 31 43 33 40 63 102 40 1 45 . 69 8 134 Missed 483 | . 32 9 . 2 49 5 7 11 8 . 4 41 7 8 43 . . 8 17 12 15 22 51 19 1 23 . 36 3 50 Hits 880 | . 78 25 . 2 109 27 29 17 19 . 9 54 11 65 83 . . 23 26 21 25 41 51 21 . 22 . 33 5 84 Melee 4 | . . . . . 4 . . . . . . . . . . . . . . . . . . . . . . . . . Projectile 876 | . 78 25 . 2 105 27 29 17 19 . 9 54 11 65 83 . . 23 26 21 25 41 51 21 . 22 . 33 5 84 AOE 7 | . . . . . . . . . . . 1 . . 3 1 . . . . . . . . . . . . . . 2 Critical Strikes 38 | . 3 1 . . 3 1 1 3 . . . 1 1 3 1 . . . 2 . . 3 2 4 . . . 2 . 7 Actively Blocked 10 | . . . . . . . . . . . . . . . . . . . . . . 1 . . . . . 2 . 7 Part Disruptions 5 | . . . . . . . . . . . . . . . 1 . . . . . . 1 . 1 . . . . . 2 Actively Blocked 1 | . . . . . . . . . . . . . . . . . . . . . . 1 . . . . . . . . Damage Taken 16509 | . 1240 279 . 21 1747 412 494 240 141 133 294 531 275 1140 1056 . . 370 604 389 493 778 843 478 91 490 . 673 117 3180 Core 3191 | . 133 80 . 10 154 36 65 13 6 . 82 74 16 66 95 . . 64 43 90 73 184 150 . 46 94 . 220 54 1343 Absorbed by Shields 731 | . . . . . . 22 . 4 . . . 4 48 216 . . . . . 27 . . 282 . . 11 . 117 . . Reduced by Siege Mode 17 | . . . . . . . . . . . . . . 17 . . . . . . . . . . . . . . . . Redirected to Shielding 318 | . . . . . . . . . . . 27 . . 76 . . . . . . 9 97 6 . . . . 91 12 . Regen/Repaired (Parts) 697 | . 129 . . . . . . . . 196 6 . . 49 36 . . . . . . . . 181 . . . . . 100 Core Remaining (%) 72 | 100 . . . 10 . . . 51 . . . 76 . . . . . 71 . 86 93 . . 74 . 90 . . . . Volleys Fired 745 | 3 77 13 . 27 112 44 44 25 5 8 4 109 20 73 45 . . 9 29 12 19 40 4 7 4 5 . 3 . 4 Largest 4 | 2 2 2 . 2 3 3 3 3 3 2 3 3 3 4 3 . . 4 4 1 1 1 1 1 2 1 . 1 . 1 Hottest 271 | 70 70 50 . 50 163 163 163 163 151 126 225 225 204 204 183 . . 201 271 81 56 113 7 65 100 80 . 80 . 80 Shots Fired 1334 | 6 154 29 . 29 280 89 89 51 11 9 6 167 34 128 76 . . 20 56 12 19 40 4 8 5 5 . 3 . 4 Gun 864 | 6 119 14 . 3 244 70 60 31 9 2 3 101 24 68 40 . . 15 29 6 8 . . 8 4 . . . . . Cannon 318 | . 35 15 . 26 21 15 25 13 . . . 49 3 47 20 . . . 20 . 5 24 . . . . . . . . Launcher 64 | . . . . . 15 4 . 5 . . 2 8 . 13 . . . . 4 . . . . . 1 5 . 3 . 4 Special 88 | . . . . . . . 4 2 2 7 1 9 7 . 16 . . 5 3 6 6 16 4 . . . . . . . Kinetic 632 | 3 150 29 . 29 198 15 25 13 3 . . 45 11 43 28 . . 7 12 5 13 2 . . 1 . . . . . Thermal 550 | 3 4 . . . 67 70 60 31 6 2 3 105 16 72 32 . . 8 37 1 . 22 . 8 3 . . . . . Explosive 64 | . . . . . 15 4 . 5 . . 2 8 . 13 . . . . 4 . . . . . 1 5 . 3 . 4 Electromagnetic . | . . . . . . . . . . . . . . . . . . . . . . . . . . . . . . . Robot Hit Streak 57 | 2 10 9 . . 23 31 17 21 5 4 3 57 12 16 6 . . 8 12 7 4 6 8 . . . . . . . Robot Miss Streak 5 | 1 4 4 . . 5 2 2 1 1 1 1 3 3 4 5 . . 3 2 1 3 2 1 . . . . . . . Penetration Max 1 | . . . . . . . . . . . . . . 1 1 . . . . . . . . . . . . . . . Secondary Targets 6 | . . . . . 3 . . . . . . 2 1 . . . . . . . . . . . . . . . . . Max Gunslinging Chain 1 | . . . . . 1 . . . . . . 1 1 . . . . . . . . . . . . . . . . . Shots Hit Robots 836 | 3 97 17 . . 165 65 62 32 9 9 4 101 21 70 43 . . 14 27 7 12 20 3 14 10 1 . 14 . 16 Core Hits 422 | 2 30 8 . 1 98 33 25 18 3 . 8 48 5 45 16 . . 7 24 1 6 4 . 4 8 9 . 9 . 10 Critical Kills 2 | . . . . . 1 . . . . . . 1 . . . . . . . . . . . . . . . . . . Critical Parts Destroyed 6 | . 1 . . . 1 . . . . . . 2 . 1 . . . . . . . 1 . . . . . . . . Critical Strikes 30 | . 2 . . . 4 2 4 2 . . . 7 2 2 2 . . . . . . 1 . 1 . . . . . 1 Burn 17 | . . . . . 2 2 2 2 . . . 4 2 1 2 . . . . . . . . . . . . . . . Destroy 8 | . 1 . . . 2 . . . . . . 3 . 1 . . . . . . . 1 . . . . . . . . Blast 3 | . 1 . . . . . 2 . . . . . . . . . . . . . . . . . . . . . . . Impale 2 | . . . . . . . . . . . . . . . . . . . . . . . . 1 . . . . . 1 Melee Attacks 288 | . . . . . 3 33 15 50 . 2 . . . . 16 . . 2 6 . 3 2 . 65 30 4 . 15 4 38 Impact 5 | . . . . . 2 . . . . . . . . . . . . . . . 3 . . . . . . . . . Slashing 130 | . . . . . 1 33 15 50 . 2 . . . . 16 . . 2 6 . . 2 . . 1 2 . . . . Piercing 133 | . . . . . . . . . . . . . . . . . . . . . . . . 64 19 1 . 7 4 38 Sneak Attacks 34 | . . . . . 1 . 3 . . 2 . . . . 3 . . . . . 1 1 . 6 6 . . 8 . 3 Combat Hostiles 2 | . . . . . . . . . . 2 . . . . . . . . . . . . . . . . . . . . Follow-up Attacks 6 | . . . . . . . . . . . . . . . . . . . . . . . . 1 . . . . . 5 Damage Inflicted 24623 | 38 1151 238 . 1 4010 1518 1182 951 114 97 340 2805 446 2691 1230 . . 263 1534 52 523 423 . 871 939 610 . 1090 . 1506 Guns 9329 | 38 693 76 . . 1979 955 707 367 114 34 45 1756 364 964 513 . . 154 370 52 125 . . . 23 . . . . . Cannons 3915 | . 438 162 . . 250 231 258 235 . . . 378 68 804 444 . . . 244 . 51 352 . . . . . . . . Explosions 7137 | . . . . . 1668 332 . 349 . . 280 671 . 923 . . . . 920 . . . . . 664 610 . 525 . 195 Melee 3917 | . . . . . 77 . 208 . . 63 . . . . 260 . . 109 . . 130 71 . 871 252 . . 565 . 1311 Ramming 325 | . 20 . . 1 36 . 9 . . . 15 . 14 . 13 . . . . . 217 . . . . . . . . . Kinetic 5826 | . 1107 238 . . 1400 231 258 235 33 . . 862 192 506 331 . . 58 82 52 176 42 . . 23 . . . . . Thermal 7418 | 38 24 . . . 829 955 707 367 81 34 45 1272 240 1262 626 . . 96 532 . . 310 . . . . . . . . Explosive 7137 | . . . . . 1668 332 . 349 . . 280 671 . 923 . . . . 920 . . . . . 664 610 . 525 . 195 Electromagnetic . | . . . . . . . . . . . . . . . . . . . . . . . . . . . . . . . Impact 207 | . . . . . 77 . . . . . . . . . . . . . . . 130 . . . . . . . . . Slashing 711 | . . . . . . . 208 . . 63 . . . . 260 . . 109 . . . 71 . . . . . . . . Piercing 2999 | . . . . . . . . . . . . . . . . . . . . . . . . 871 252 . . 565 . 1311 Highest Corruption 20 | . 3 3 3 4 4 4 4 5 . . . . 2 2 4 4 4 4 3 3 6 7 7 12 1 4 . 1 1 20 Average Corruption 3 | . 1 3 3 3 4 4 4 4 . . . . 1 2 3 4 4 4 1 3 6 4 7 8 1 1 . 1 1 3 Corruption Purged 1 | . . . . . . . . . . . . . . . . . . . . . . . . . . . . . . 1 Corruption Blocked . | . . . . . . . . . . . . . . . . . . . . . . . . . . . . . . . Effects 362 | . 10 24 16 24 44 30 47 20 . . . . . 24 30 22 1 13 3 8 12 6 6 19 . . . . . 3 Message Errors 88 | . 3 4 4 4 11 11 7 6 . . . . . 4 9 6 . 1 1 2 3 4 2 6 . . . . . . Matter Fused 88 | . 3 3 7 6 10 4 9 4 . . . . . 6 4 11 . 3 2 6 3 1 1 4 . . . . . 1 Heat Flow Errors 46 | . 1 2 2 3 3 6 8 4 . . . . . 3 3 2 1 2 . . . . 2 3 . . . . . 1 Energy Discharges 44 | . 1 5 1 1 8 3 7 . . . . . . 5 4 1 . . . . 4 . 1 3 . . . . . . Parts Rejected 7 | . . . . 1 . 1 2 . . . . . . . 1 . . 1 . . . 1 . . . . . . . . Parts Fused 5 | . . 2 . . 1 1 1 . . . . . . . . . . . . . . . . . . . . . . . Data Loss (minor) 28 | . 1 1 . 3 5 1 3 4 . . . . . 3 3 1 . 3 . . . . . . . . . . . . Data Loss (major) 22 | . . 3 1 4 2 1 3 2 . . . . . 1 1 1 . 2 . . 1 . . . . . . . . . Misfires 12 | . . 3 . 1 2 1 3 . . . . . . . 1 . . . . . . . . 1 . . . . . . Alerts 14 | . 1 1 1 . 2 . 3 . . . . . . 1 2 . . 1 . . 1 . . 1 . . . . . . Misdirections 2 | . . . . . . . . . . . . . . . . . . . . . . . . 1 . . . . . 1 Weapon Failures 6 | . . . . 1 . 1 1 . . . . . . 1 2 . . . . . . . . . . . . . . . Overload Shots . | . . . . . . . . . . . . . . . . . . . . . . . . . . . . . . . Overflow Damage 1013 | . 1 . . . 123 13 14 22 . . 5 18 . . 57 . . . 20 . 80 2 . 372 116 18 . . . 152 Projectiles 38 | . 1 . . . . . . . . . . . . . 33 . . . 2 . . 2 . . . . . . . . Explosions 293 | . . . . . 83 13 . 22 . . 5 18 . . . . . . 18 . . . . . 116 18 . . . . Melee 682 | . . . . . 40 . 14 . . . . . . . 24 . . . . . 80 . . 372 . . . . . 152 Knockbacks 33 | . 12 2 . . 2 3 4 3 . . . . . . 1 . . . . . 4 2 . . . . . . . . Impact 3 | . . . . . . . . . . . . . . . 1 . . . . . 2 . . . . . . . . . Kinetic 24 | . 7 2 . . 2 2 4 3 . . . . . . . . . . . . 2 2 . . . . . . . . Secondary 6 | . 5 . . . . 1 . . . . . . . . . . . . . . . . . . . . . . . . Self-Inflicted Damage 425 | . 6 . . . 79 . . . . . . 27 . 126 . . . . 63 . 104 . . . . . . . . 20 Shots 11 | . . . . . 3 . . . . . . 1 . 5 . . . . 1 . . . . . . . . . . 1 Rammed 31 | . 3 . . 1 7 . 1 . . . 1 . 3 . . . . . . . 15 . . . . . . . . . Targets Rammed 32 | . 3 . . 1 7 . 1 . . . 1 . 3 . 1 . . . . . 15 . . . . . . . . . Kicked 1 | . . . . . . . . . . . . . . . 1 . . . . . . . . . . . . . . . Crushed . | . . . . . . . . . . . . . . . . . . . . . . . . . . . . . . . Highest Temperature 408 | . 197 144 262 234 228 380 266 408 165 21 72 144 108 274 324 231 259 303 294 35 18 252 244 277 27 40 3 60 4 242 Average Temperature 75 | . 29 33 119 95 49 121 83 115 82 14 42 68 50 109 122 98 137 136 127 35 9 83 52 50 9 16 1 20 4 54 Received Heat Transfer 2917 | . 252 129 . 40 558 246 243 150 42 . 36 156 31 161 102 . . . 204 39 . 21 149 67 . 45 . 30 27 189 Effects 14 | . . . . . . 2 . 5 . . . . . . 1 . . 1 . . . 5 . . . . . . . . Shutdowns 1 | . . . . . . . . 1 . . . . . . . . . . . . . . . . . . . . . . Energy Bleed 2 | . . . . . . 1 . . . . . . . . . . . 1 . . . . . . . . . . . . Interference 8 | . . . . . . . . 3 . . . . . . . . . . . . . 5 . . . . . . . . Short Circuit 1 | . . . . . . 1 . . . . . . . . . . . . . . . . . . . . . . . . Damage (minor) 2 | . . . . . . . . 1 . . . . . . 1 . . . . . . . . . . . . . . . Siege Activations 2 | . . . . . . . . . . . . . . 2 . . . . . . . . . . . . . . . . Total Turns 28 | . . . . . . . . . . . . . . 28 . . . . . . . . . . . . . . . . Longest Duration 16 | . . . . . . . . . . . . . . 16 . . . . . . . . . . . . . . . . Martial Activations . | . . . . . . . . . . . . . . . . . . . . . . . . . . . . . . . Shielding Activations . | . . . . . . . . . . . . . . . . . . . . . . . . . . . . . . . Robots Disrupted . | . . . . . . . . . . . . . . . . . . . . . . . . . . . . . . . Combat Hostiles . | . . . . . . . . . . . . . . . . . . . . . . . . . . . . . . . Robots Corrupted 3 | . . . . . 1 . . . . . . . . . . . . . . . 2 . . . . . . . . . Combat Hostiles . | . . . . . . . . . . . . . . . . . . . . . . . . . . . . . . . Parts Fried 6 | . . . . . 2 . . . . . . . . . . . . . . . 4 . . . . . . . . . Impact Corruptions 6 | . . . . . 2 . . . . . . . . . . . . . . . 4 . . . . . . . . . Robots Melted 3 | . . . . . . 2 . . . . . 1 . . . . . . . . . . . . . . . . . . Combat Hostiles 1 | . . . . . . . . . . . . 1 . . . . . . . . . . . . . . . . . . Parts Melted 12 | . 1 . . . 1 . 2 2 1 . . 1 . 2 . . . 1 1 . . . . . . . . . . . Heat Transferred 13891 | 111 74 . . . 1996 2220 1702 888 185 74 74 2183 481 1665 888 . . 224 867 . . 259 . . . . . . . . Parts Sabotaged . | . . . . . . . . . . . . . . . . . . . . . . . . . . . . . . . Parts Stolen . | . . . . . . . . . . . . . . . . . . . . . . . . . . . . . . . Parts Stripped . | . . . . . . . . . . . . . . . . . . . . . . . . . . . . . . . Power Chain Reactions . | . . . . . . . . . . . . . . . . . . . . . . . . . . . . . . . Alert | -11 -10 -10 -10 -9 -8 -8 -8 -8 -7 -7 -7 -7 -6 -6 -6 -6 -6 -5 -5 -5 -4 -3 -3 -3 -2 -2 -1 -1 -1 -1 ------- Run | Yrd Mat Min Exi Min Mat Gar Mat Gar Fac Was Fac Gar Fac Gar Fac Low Dat Pro Fac Gar Fac Res Gar Res Res Gar Acc Gar Acc Com Maximum Alert Level 3 | . . . . . 2 2 1 1 . . . 3 2 2 1 . . . . 1 . . . . . 2 1 1 1 . Low Security (%) 68 | 100 100 100 . 100 46 31 74 88 100 100 100 12 15 13 80 . . . 100 69 100 100 100 100 100 20 . 10 41 100 Level 1 15 | . . . . . 24 7 25 11 . . . 9 78 40 19 . . . . 30 . . . . . 51 100 89 58 . Level 2 14 | . . . . . 28 60 . . . . . 50 5 46 . . . . . . . . . . . 28 . . . . Level 3 1 | . . . . . . . . . . . . 26 . . . . . . . . . . . . . . . . . . Level 4 . | . . . . . . . . . . . . . . . . . . . . . . . . . . . . . . . Level 5 . | . . . . . . . . . . . . . . . . . . . . . . . . . . . . . . . High Security . | . . . . . . . . . . . . . . . . . . . . . . . . . . . . . . . Max Security . | . . . . . . . . . . . . . . . . . . . . . . . . . . . . . . . Peak Influence 793 | 5 86 94 . 73 521 689 358 332 174 40 146 793 413 634 332 . . . 146 214 112 27 153 100 113 459 262 374 224 166 Initial 413 | . . 7 . . . 28 335 30 174 . . 22 413 165 332 . . . . 95 112 . . 80 60 54 262 193 224 113 Average 163 | . 19 14 . 11 226 363 113 130 80 3 66 487 273 392 89 . . . 12 157 22 3 31 23 34 298 253 238 204 121 Influence Increases 7672 | 10 231 130 . 181 1204 691 394 342 23 60 372 856 193 549 184 . . 27 253 149 102 133 248 227 169 434 . 241 4 265 Destroy 0b10 Robot/C 2942 | . 120 100 . 160 740 280 180 165 15 . 150 300 120 216 60 . . 24 72 12 . 24 12 . 60 96 . 24 . 12 Destroy 0b10 Robot/NC 326 | 10 30 . . . 95 15 30 . . . 4 28 6 9 21 . . 3 12 . 12 6 . 15 9 . . 3 . 18 Destroy Leader 510 | . 36 20 . . 196 20 54 8 8 . 24 16 32 24 20 . . . 22 . 2 . . 2 8 6 . . . 12 Allied During Kill 368 | . . . . 18 31 7 1 . . . 153 96 29 16 3 . . . . . . 2 2 . . 8 . 2 . . Trap Triggered on 0b10 70 | . . 10 . . . . 60 . . . . . . . . . . . . . . . . . . . . . . . Successful Hack 200 | . 15 . . . 15 12 17 11 . . . . 4 9 6 . . . 21 8 19 15 9 13 . 6 . . . 20 Disable Machine 129 | . . . . . 15 . 15 . . . . . . 9 18 . . . 36 . . . . . 36 . . . . . Anti-Garrison Action 1019 | . . . . . . 250 . 76 . . . 303 . 150 . . . . . 120 . . . . . 90 . 30 . . Destroy Structure 1169 | . . . . 3 82 107 22 82 . 60 41 113 2 107 11 . . . 72 . 6 32 . 80 56 111 . 74 4 104 Partial Spotted 72 | . . . . . . . . . . . . . . . . . . . 9 . . . . 18 . . . 9 . 36 Lose Combat Pursuer 867 | . 30 . . . 30 . 15 . . . . . . 9 45 . . . 9 9 63 54 225 99 . 117 . 99 . 63 Influence Decreases 7672 | 10 210 93 58 181 1160 46 1036 57 355 60 340 100 745 151 793 25 . 27 117 71 314 135 105 261 205 69 196 109 200 443 Entered New Map 2101 | . . 14 58 . . 16 354 17 158 . . 10 375 71 302 10 . . . 41 102 2 . 63 49 19 176 49 150 65 Time Decay 3961 | 10 200 79 . 181 620 . 580 . 197 60 274 . 310 . 414 15 . 27 105 . 191 102 . 196 136 . 20 . 30 214 Lost Part 530 | . 10 . . . 90 10 . . . . . 10 . 40 43 . . . 10 10 21 . 80 2 . 10 . 40 20 134 Lost Ally 548 | . . . . . . 20 20 40 . . 66 80 60 40 34 . . . 2 20 . 31 25 . 20 40 . 20 . 30 Purge Threat 532 | . . . . . 450 . 82 . . . . . . . . . . . . . . . . . . . . . . . Squads Dispatched 40 | . . . . . 7 . 1 . . . 3 . 2 . 5 . . . 4 . 4 1 . 7 3 . . . . 3 Investigation 9 | . . . . . 2 . . . . . . . . . 2 . . . 1 . . . . 3 . . . . . 1 Extermination 14 | . . . . . . . . . . . 1 . 1 . 2 . . . 1 . 2 1 . 3 2 . . . . 1 Reinforcement 11 | . . . . . 1 . 1 . . . 2 . . . 1 . . . 1 . 2 . . 1 1 . . . . 1 Assault 1 | . . . . . 1 . . . . . . . . . . . . . . . . . . . . . . . . . Garrison 5 | . . . . . 3 . . . . . . . 1 . . . . . 1 . . . . . . . . . . . Intercept . | . . . . . . . . . . . . . . . . . . . . . . . . . . . . . . . Searches Triggered . | . . . . . . . . . . . . . . . . . . . . . . . . . . . . . . . Construction Impeded 3 | . . . . . . . . . . . 1 . . . . . . . 1 . 1 . . . . . . . . . Haulers Reinforced 1 | . . . . . . . . . . . . . . . 1 . . . . . . . . . . . . . . . Active Scanning Responses . | . . . . . . . . . . . . . . . . . . . . . . . . . . . . . . . Cargo Convoy Interrupts . | . . . . . . . . . . . . . . . . . . . . . . . . . . . . . . . Stealth | -11 -10 -10 -10 -9 -8 -8 -8 -8 -7 -7 -7 -7 -6 -6 -6 -6 -6 -5 -5 -5 -4 -3 -3 -3 -2 -2 -1 -1 -1 -1 --------- Run | Yrd Mat Min Exi Min Mat Gar Mat Gar Fac Was Fac Gar Fac Gar Fac Low Dat Pro Fac Gar Fac Res Gar Res Res Gar Acc Gar Acc Com Distress Signals 16 | . 1 . . . 5 . 2 . . . . . . . 1 . . . . . 2 4 . . 1 . . . . . Communications Jammed 5 | . . . . . . . . . . . . . . . . . . . . . . . . . . . . . 2 3 Distress Signals 5 | . . . . . . . . . . . . . . . . . . . . . . . . . . . . . 2 3 Times Spotted 402 | . 15 5 . 6 50 11 21 11 1 4 14 26 12 18 14 . . 6 21 6 15 18 29 21 6 24 . 24 4 20 Peak Tracking Total 19 | . 5 3 . 1 5 4 4 6 1 1 5 4 4 4 5 . . 5 6 5 5 6 19 12 3 9 . 14 4 11 Tactical Retreats 37 | . 2 . . . 2 . 1 . . . . . . 1 2 . . . 1 1 4 3 4 4 . 6 . 2 . 4 Traps | -11 -10 -10 -10 -9 -8 -8 -8 -8 -7 -7 -7 -7 -6 -6 -6 -6 -6 -5 -5 -5 -4 -3 -3 -3 -2 -2 -1 -1 -1 -1 ------- Run | Yrd Mat Min Exi Min Mat Gar Mat Gar Fac Was Fac Gar Fac Gar Fac Low Dat Pro Fac Gar Fac Res Gar Res Res Gar Acc Gar Acc Com Traps Triggered 36 | . 2 . . . 1 4 . 6 1 . . 5 1 . . . . . 1 5 . 3 3 . 1 . . 3 . . Indirectly . | . . . . . . . . . . . . . . . . . . . . . . . . . . . . . . . Trap Hack Attempts . | . . . . . . . . . . . . . . . . . . . . . . . . . . . . . . . Triggered . | . . . . . . . . . . . . . . . . . . . . . . . . . . . . . . . Disarmed . | . . . . . . . . . . . . . . . . . . . . . . . . . . . . . . . Reprogrammed 6 | . . . . . . . 6 . . . . . . . . . . . . . . . . . . . . . . . Reused 7 | . . 1 . . . . 6 . . . . . . . . . . . . . . . . . . . . . . . Traps Extracted . | . . . . . . . . . . . . . . . . . . . . . . . . . . . . . . . Installed 5 | . . 5 . . . . . . . . . . . . . . . . . . . . . . . . . . . . Triggered 7 | . . 1 . . . . 6 . . . . . . . . . . . . . . . . . . . . . . . Machines | -11 -10 -10 -10 -9 -8 -8 -8 -8 -7 -7 -7 -7 -6 -6 -6 -6 -6 -5 -5 -5 -4 -3 -3 -3 -2 -2 -1 -1 -1 -1 ---------- Run | Yrd Mat Min Exi Min Mat Gar Mat Gar Fac Was Fac Gar Fac Gar Fac Low Dat Pro Fac Gar Fac Res Gar Res Res Gar Acc Gar Acc Com Machines Disabled 31 | . . . . . 1 2 1 2 . . . 5 . 3 2 . . . 4 4 . . . . 4 2 . 1 . . Max in Single Turn 1 | . . . . . 1 1 1 1 . . . 1 . 1 1 . . . 1 1 . . . . 1 1 . 1 . . Garrison Access 1 | . . . . . . . . . . . . . . . . . . . 1 . . . . . . . . . . . Garrison Relay 17 | . . . . . . 2 . 2 . . . 5 . 1 . . . . . 4 . . . . . 2 . 1 . . Machines Repaired . | . . . . . . . . . . . . . . . . . . . . . . . . . . . . . . . Machines Dismantled . | . . . . . . . . . . . . . . . . . . . . . . . . . . . . . . . Machines Sabotaged . | . . . . . . . . . . . . . . . . . . . . . . . . . . . . . . . Overloaded Fab Kills . | . . . . . . . . . . . . . . . . . . . . . . . . . . . . . . . Hacking | -11 -10 -10 -10 -9 -8 -8 -8 -8 -7 -7 -7 -7 -6 -6 -6 -6 -6 -5 -5 -5 -4 -3 -3 -3 -2 -2 -1 -1 -1 -1 --------- Run | Yrd Mat Min Exi Min Mat Gar Mat Gar Fac Was Fac Gar Fac Gar Fac Low Dat Pro Fac Gar Fac Res Gar Res Res Gar Acc Gar Acc Com Machines Accessed 117 | . 11 . 2 . 14 2 8 2 3 . 3 3 2 2 9 . 3 . 9 2 7 5 1 9 8 1 2 . . 9 Terminals 64 | . 8 . . . 9 2 4 2 . . 1 3 . 2 3 . . . 5 2 3 1 1 6 3 1 . . . 8 Fabricators 4 | . . . . . . . . . . . . . . . 2 . . . 1 . 1 . . . . . . . . . Repair Stations 7 | . 1 . . . 1 . 1 . . . . . . . 1 . . . . . . . . 2 . . . . . 1 Recycling Units 15 | . 2 . . . 1 . 1 . 2 . . . 1 . 2 . . . . . 2 1 . . 3 . . . . . Scanalyzers 12 | . . . . . 2 . 1 . 1 . 1 . . . 1 . . . 1 . . 2 . 1 1 . 1 . . . Garrison Access 10 | . . . . . 1 . 1 . . . 1 . 1 . . . . . 2 . 1 1 . . 1 . 1 . . . Total Hacks 314 | . 33 . 2 . 62 4 25 2 4 . 4 5 5 3 27 . 22 . 22 5 14 9 2 24 17 5 4 . . 14 Successful 153 | . 18 . 2 . 37 1 15 1 1 . 1 . 2 1 13 . 22 . 11 1 3 3 1 9 6 1 1 . . 3 Failed 158 | . 15 . . . 24 3 10 1 3 . 3 5 3 2 13 . . . 11 4 11 6 1 15 10 4 3 . . 11 Catastrophic 33 | . . . . . 1 3 2 1 1 . 1 2 . . 3 . . . 1 1 4 1 1 4 1 . . . . 6 Database Lockouts 3 | . . . . . 1 . . . . . . . . . 1 . . . . . . . . . 1 . . . . . Manual 117 | . 22 . 1 . 20 1 8 . . . . . 1 . 16 . . . 12 2 5 1 1 10 8 . . . . 9 Terminals 175 | . 27 . . . 38 4 14 2 . . 2 5 . 3 13 . . . 15 5 6 2 2 13 7 5 . . . 12 Fabricators 9 | . . . . . . . . . . . . . . . 4 . . . 3 . 2 . . . . . . . . . Repair Stations 21 | . 3 . . . 3 . 3 . . . . . . . 1 . . . . . . . . 9 . . . . . 2 Recycling Units 34 | . 3 . . . 2 . 3 . 2 . . . 4 . 7 . . . . . 5 1 . . 7 . . . . . Scanalyzers 40 | . . . . . 18 . 3 . 2 . 1 . . . 2 . . . 2 . . 5 . 2 2 . 3 . . . Garrison Access 11 | . . . . . 1 . 2 . . . 1 . 1 . . . . . 2 . 1 1 . . 1 . 1 . . . Terminal Hacks 58 | . 4 . 2 . 11 1 5 1 . . . . . 1 2 . 22 . 2 1 1 . 1 2 . 1 . . . 1 Record 5 | . . . 1 . . . . . . . . . . . . . 4 . . . . . . . . . . . . . Part Schematic 10 | . . . . . . . . . . . . . . . . . 10 . . . . . . . . . . . . . Robot Schematic 5 | . . . . . . . . . . . . . . . . . 5 . . . . . . . . . . . . . Prototype ID Bank 6 | . 2 . . . 1 . . . . . . . . . . . 3 . . . . . . . . . . . . . Open Door 1 | . . . . . . . . . . . . . . . . . . . . . . . . . . . . . . 1 Open DSF 1 | . . . . . . . . . . . . . . . . . . . . . . . . 1 . . . . . . Branch Access Points 1 | . . . . . 1 . . . . . . . . . . . . . . . . . . . . . . . . . Emergency Access Points 3 | . . . . . . . . . . . . . . . . . . . . 1 . . 1 . . 1 . . . . Terminal Index 3 | . . . . . 2 . . . . . . . . . . . . . 1 . . . . . . . . . . . Unreport Threat 4 | . . . . . 3 . 1 . . . . . . . . . . . . . . . . . . . . . . . Locate Traps 6 | . 1 . . . 1 . 2 . . . . . . . . . . . . . 1 . . 1 . . . . . . Reprogram Traps 1 | . . . . . . . 1 . . . . . . . . . . . . . . . . . . . . . . . Hauler Manifests 5 | . 1 . . . 2 . 1 . . . . . . . 1 . . . . . . . . . . . . . . . Zone Layout 3 | . . . . . 1 . . . . . . . . . 1 . . . 1 . . . . . . . . . . . Patrol Navigation 3 | . . . . . . 1 . 1 . . . . . 1 . . . . . . . . . . . . . . . . Proto ID Catalog 1 | . . . 1 . . . . . . . . . . . . . . . . . . . . . . . . . . . Fabricator Hacks 4 | . . . . . . . . . . . . . . . 2 . . . 2 . . . . . . . . . . . Network Status 1 | . . . . . . . . . . . . . . . 1 . . . . . . . . . . . . . . . Load Schematic 2 | . . . . . . . . . . . . . . . 1 . . . 1 . . . . . . . . . . . Build 1 | . . . . . . . . . . . . . . . . . . . 1 . . . . . . . . . . . Repair Station Hacks 9 | . 2 . . . 1 . 1 . . . . . . . . . . . . . . . . 5 . . . . . . Scan Component 5 | . 1 . . . 1 . 1 . . . . . . . . . . . . . . . . 2 . . . . . . Repair 3 | . 1 . . . . . . . . . . . . . . . . . . . . . . 2 . . . . . . Refit 1 | . . . . . . . . . . . . . . . . . . . . . . . . 1 . . . . . . Recycling Unit Hacks 4 | . 1 . . . . . 1 . . . . . . . 1 . . . . . . . . . 1 . . . . . Retrieve Components 4 | . 1 . . . . . 1 . . . . . . . 1 . . . . . . . . . 1 . . . . . Scanalyzer 22 | . . . . . 16 . 2 . 1 . . . . . 1 . . . . . . 1 . . 1 . . . . . Insert Component 6 | . . . . . 6 . . . . . . . . . . . . . . . . . . . . . . . . . Analyze 4 | . . . . . 4 . . . . . . . . . . . . . . . . . . . . . . . . . Retrieve Study 12 | . . . . . 6 . 2 . 1 . . . . . 1 . . . . . . 1 . . 1 . . . . . Garrison Access Hacks 11 | . . . . . 1 . 2 . . . 1 . 1 . . . . . 2 . 1 1 . . 1 . 1 . . . Unlock Access 9 | . . . . . 1 . 1 . . . 1 . 1 . . . . . 1 . 1 1 . . 1 . 1 . . . Seal Access 1 | . . . . . . . . . . . . . . . . . . . 1 . . . . . . . . . . . Coupler Status 1 | . . . . . . . 1 . . . . . . . . . . . . . . . . . . . . . . . Unauthorized Hacks 45 | . 11 . . . 8 . 4 . . . . . 1 . 7 . . . 5 . 1 1 . 2 3 . . . . 2 Terminals 33 | . 10 . . . 8 . 2 . . . . . . . 3 . . . 5 . 1 1 . 1 1 . . . . 1 Assimilate 3 | . . . . . . . . . . . . . . . 1 . . . . . 1 . . . . . . . . 1 Botnet 22 | . 4 . . . 7 . 2 . . . . . . . 2 . . . 4 . . 1 . 1 1 . . . . . Operators 1 | . 1 . . . . . . . . . . . . . . . . . . . . . . . . . . . . . Skim 7 | . 5 . . . 1 . . . . . . . . . . . . . 1 . . . . . . . . . . . Fabricators 1 | . . . . . . . . . . . . . . . 1 . . . . . . . . . . . . . . . Recompile 1 | . . . . . . . . . . . . . . . 1 . . . . . . . . . . . . . . . Repair Stations 3 | . . . . . . . . . . . . . . . 1 . . . . . . . . 1 . . . . . 1 Patch 3 | . . . . . . . . . . . . . . . 1 . . . . . . . . 1 . . . . . 1 Recycling Units 8 | . 1 . . . . . 2 . . . . . 1 . 2 . . . . . . . . . 2 . . . . . Reject 4 | . 1 . . . . . 1 . . . . . . . 1 . . . . . . . . . 1 . . . . . Mask 4 | . . . . . . . 1 . . . . . 1 . 1 . . . . . . . . . 1 . . . . . Scanalyzers . | . . . . . . . . . . . . . . . . . . . . . . . . . . . . . . . Garrison Access . | . . . . . . . . . . . . . . . . . . . . . . . . . . . . . . . Data Cores Recovered 1 | . . . . . . . . . . . . . . . . . . . . . . . . 1 . . . . . . Used . | . . . . . . . . . . . . . . . . . . . . . . . . . . . . . . . Hacking Detections 96 | . 11 . . . 13 2 6 1 3 . 1 3 2 2 6 . . . 8 2 6 4 1 8 7 1 1 . . 8 Full Trace Events 9 | . . . . . 2 1 1 . . . . 1 . . . . . . 1 . . . . 2 . 1 . . . . Feedback Events . | . . . . . . . . . . . . . . . . . . . . . . . . . . . . . . . Feedback Blocked . | . . . . . . . . . . . . . . . . . . . . . . . . . . . . . . . Robot Schematics Acquired 5 | . . . . . . . . . . . . . . . . . 5 . . . . . . . . . . . . . Robots Built . | . . . . . . . . . . . . . . . . . . . . . . . . . . . . . . . Authchips . | . . . . . . . . . . . . . . . . . . . . . . . . . . . . . . . Time . | . . . . . . . . . . . . . . . . . . . . . . . . . . . . . . . Total Robot Build Rating . | . . . . . . . . . . . . . . . . . . . . . . . . . . . . . . . Part Schematics Acquired 13 | . . . . . 3 . . . . . . . . . . . 10 . . . . . . . . . . . . . Parts Built 1 | . . . . . . . . . . . . . . . . . . . 1 . . . . . . . . . . . Authchips 1 | . . . . . . . . . . . . . . . . . . . 1 . . . . . . . . . . . Time 42 | . . . . . . . . . . . . . . . . . . . 42 . . . . . . . . . . . Total Part Build Rating 8 | . . . . . . . . . . . . . . . . . . . 8 . . . . . . . . . . . Part Studies Acquired 12 | . . . . . 6 . 2 . 1 . . . . . 1 . . . . . . 1 . . 1 . . . . . Parts Repaired 3 | . 1 . . . . . . . . . . . . . . . . . . . . . . 2 . . . . . . Time 196 | . 26 . . . . . . . . . . . . . . . . . . . . . . 170 . . . . . . Parts Recycled . | . . . . . . . . . . . . . . . . . . . . . . . . . . . . . . . Recycled Matter . | . . . . . . . . . . . . . . . . . . . . . . . . . . . . . . . Retrieved Matter . | . . . . . . . . . . . . . . . . . . . . . . . . . . . . . . . Retrieved Components 20 | . 9 . . . . . 9 . . . . . . . 2 . . . . . . . . . . . . . . . Parts Scanalyzed 4 | . . . . . 4 . . . . . . . . . . . . . . . . . . . . . . . . . Part Schematics Acquired 3 | . . . . . 3 . . . . . . . . . . . . . . . . . . . . . . . . . Parts Damaged 1 | . . . . . 1 . . . . . . . . . . . . . . . . . . . . . . . . . Bothacking | -11 -10 -10 -10 -9 -8 -8 -8 -8 -7 -7 -7 -7 -6 -6 -6 -6 -6 -5 -5 -5 -4 -3 -3 -3 -2 -2 -1 -1 -1 -1 ------------ Run | Yrd Mat Min Exi Min Mat Gar Mat Gar Fac Was Fac Gar Fac Gar Fac Low Dat Pro Fac Gar Fac Res Gar Res Res Gar Acc Gar Acc Com Used RIF Installer 8 | . . . . . . 1 . 1 . . . 2 . 1 . . . . . 1 . . 1 . . 1 . . . . Coupler Efficiency 1 | . . . . . . . . . . . . 1 . . . . . . . . . . . . . . . . . . Threat Obfuscator 2 | . . . . . . . . 1 . . . 1 . . . . . . . . . . . . . . . . . . Zone Cloak 1 | . . . . . . . . . . . . . . . . . . . . . . . 1 . . . . . . . Robot Detection 1 | . . . . . . . . . . . . . . . . . . . . . . . . . . 1 . . . . Structural Interface 1 | . . . . . . . . . . . . . . . . . . . . 1 . . . . . . . . . . Autoassimilate 1 | . . . . . . . . . . . . . . 1 . . . . . . . . . . . . . . . . Robots Hacked 66 | . . . . . . . 3 2 1 6 1 6 4 . 10 . . 3 2 4 2 11 4 1 4 1 . . . 1 Non-combat 21 | . . . . . . . . . 1 . . . 4 . 4 . . . . . 1 7 . 1 3 . . . . . Combat 45 | . . . . . . . 3 2 . 6 1 6 . . 6 . . 3 2 4 1 4 4 . 1 1 . . . 1 Autoassimilated 7 | . . . . . . . . . . . . . . . 3 . . 1 1 . . . 1 . . . . . . 1 Robot Hacks Applied 64 | . . . . . . . 3 2 1 6 1 6 5 . 9 . . 2 1 4 2 12 3 1 5 1 . . . . parse_system 3 | . . . . . . . . . . . . 1 . . . . . . . . . 1 . . . 1 . . . . drop_inventory 8 | . . . . . . . . . . . . . 2 . 1 . . . . . . 3 . . 2 . . . . . locate_stockpiles 2 | . . . . . . . . . . . . . 1 . . . . . . . . . . . 1 . . . . . find_recycling 1 | . . . . . . . . . . . . . . . . . . . . . . 1 . . . . . . . . ignore_parts 1 | . . . . . . . . . . . . . . . . . . . . . . 1 . . . . . . . . block_reporting 1 | . . . . . . . . . . . . . . . . . . . . . . 1 . . . . . . . . map_route 7 | . . . . . . . . . . . . . 2 . 1 . . . . . 1 1 . 1 1 . . . . . mark_security 1 | . . . . . . . . . . . . . . . 1 . . . . . . . . . . . . . . . ignore_targets 6 | . . . . . . . . . . 6 . . . . . . . . . . . . . . . . . . . . find_shortcuts 1 | . . . . . . . . . . . . . . . 1 . . . . . . . . . . . . . . . spike_heat 2 | . . . . . . . 1 . . . . 1 . . . . . . . . . . . . . . . . . . amplify_resonance 7 | . . . . . . . . . . . . 2 . . . . . 2 . 1 1 . 1 . . . . . . . wipe_record 3 | . . . . . . . 1 . . . . . . . . . . . . 1 . 1 . . . . . . . . disable_weapons 2 | . . . . . . . . . . . . . . . 1 . . . . 1 . . . . . . . . . . reboot_system 2 | . . . . . . . . . . . . . . . 1 . . . 1 . . . . . . . . . . . overwrite_iff 9 | . . . . . . . . 2 . . 1 2 . . . . . . . . . 2 2 . . . . . . . streamctrl_high 1 | . . . . . . . . . . . . . . . . . . . . . . 1 . . . . . . . . formatsys_low 3 | . . . . . . . . . 1 . . . . . 2 . . . . . . . . . . . . . . . formatsys_high 4 | . . . . . . . 1 . . . . . . . 1 . . . . 1 . . . . 1 . . . . . Relay Couplers Released 71 | . . . . . . 9 . 8 . . . 21 . 4 . . . . . 15 . . . . . 9 . 5 . . Machine Destruction 71 | . . . . . . 9 . 8 . . . 21 . 4 . . . . . 15 . . . . . 9 . 5 . . Attached 27 | . . . . . . . 1 1 1 . 1 2 1 1 4 . . 1 . 4 3 . 3 . . 2 1 1 . . Fabnet Peak Effective % . | . . . . . . . . . . . . . . . . . . . . . . . . . . . . . . . Robots Rewired 1 | . . . . . . . . . . . . . . . . . . . . . . . . . . . . 1 . . Allies Hacked 3 | . . . . . . . . . . . . . 1 1 . . . . . . . . . . . . . . . 1 Hacks Repelled . | . . . . . . . . . . . . . . . . . . . . . . . . . . . . . . . Allies | -11 -10 -10 -10 -9 -8 -8 -8 -8 -7 -7 -7 -7 -6 -6 -6 -6 -6 -5 -5 -5 -4 -3 -3 -3 -2 -2 -1 -1 -1 -1 -------- Run | Yrd Mat Min Exi Min Mat Gar Mat Gar Fac Was Fac Gar Fac Gar Fac Low Dat Pro Fac Gar Fac Res Gar Res Res Gar Acc Gar Acc Com Total Allies 48 | . . . . . . 1 1 2 1 19 1 2 . . 6 . . 1 1 1 . 3 3 . 1 2 . 1 . 2 Largest Group 20 | . . . . . . 1 1 1 1 20 12 6 . . 3 . . 1 1 1 . 1 1 . 1 2 . 1 . 1 Highest-Rated Group 488 | . . . . . . 39 15 15 23 488 337 168 . . 91 . . 41 49 49 . 64 64 . 64 124 . 85 . 64 Highest-Rated Ally 85 | . . . . . . 39 15 15 23 35 35 35 . . 41 . . 41 49 49 . 64 64 . 64 62 . 85 . 64 Total Orders 9 | . . . . . . . . . 1 2 . . . 4 . . . . . . . 2 . . . . . . . . STAY 3 | . . . . . . . . . . . . . . 2 . . . . . . . 1 . . . . . . . . FOLLOW 3 | . . . . . . . . . . 1 . . . 2 . . . . . . . . . . . . . . . . AID 3 | . . . . . . . . . 1 1 . . . . . . . . . . . 1 . . . . . . . . Ally Attacks 380 | . . . . 24 7 10 6 2 . 105 34 32 76 26 16 . . . . 6 2 8 5 . 2 8 . 5 . 6 Total Damage 11384 | . . . . 1153 387 130 105 42 . 4304 803 1123 807 631 529 . . . . 116 88 270 106 . 94 346 . 292 . 58 Kills 72 | . . . . 10 5 3 1 . . 13 8 9 9 4 1 . . . . 1 . 2 1 . . 3 . 2 . . Allies Corrupted 3 | . . . . . . . . . . . . . . . . . . . . . . . . . . 2 . . . 1 Allies Melted . | . . . . . . . . . . . . . . . . . . . . . . . . . . . . . . . Turrets Deployed 3 | . . . . 2 1 . . . . . . . . . . . . . . . . . . . . . . . . . Borg Created 8 | . . . . . . . . . . . . . 4 2 . . . . . 1 1 . . . . . . . . . Largest Collective 4 | . . . . . . . . . . . . . 4 3 . . . . . 1 1 . . . . . . . . . Intel | -11 -10 -10 -10 -9 -8 -8 -8 -8 -7 -7 -7 -7 -6 -6 -6 -6 -6 -5 -5 -5 -4 -3 -3 -3 -2 -2 -1 -1 -1 -1 ------- Run | Yrd Mat Min Exi Min Mat Gar Mat Gar Fac Was Fac Gar Fac Gar Fac Low Dat Pro Fac Gar Fac Res Gar Res Res Gar Acc Gar Acc Com Active Infowar (turns) 9545 | 42 839 1206 634 . 416 . 3 . . . . . . . . 883 119 645 872 621 753 437 248 630 340 154 52 113 70 468 Optics 6391 | . . . . . . . 1 . . . . . . . . 868 119 645 872 621 753 437 248 630 340 154 52 113 70 468 Sensors 1694 | . . . . . . . 2 . . . . . . . . 883 119 636 54 . . . . . . . . . . . IFF 1 | . . . . . . . . . . . . . . . . . . . 1 . . . . . . . . . . . Traps 416 | . . . . . 416 . . . . . . . . . . . . . . . . . . . . . . . . . Seismic 2721 | 42 839 1206 634 . . . . . . . . . . . . . . . . . . . . . . . . . . . Jamming 873 | . . . . . . . . . . . . . . . . . . . . . . . . . 311 154 52 113 70 173 ECM 1 | . . . . . . . . . . . . . . . . . . . . . . . . . . . 1 . . . Robot Analysis Total . | . . . . . . . . . . . . . . . . . . . . . . . . . . . . . . . Derelict Logs Recovered 3 | . . 1 . . . . . . . . . . . . . . . 2 . . . . . . . . . . . . Drone Launches . | . . . . . . . . . . . . . . . . . . . . . . . . . . . . . . . Drone Recoveries . | . . . . . . . . . . . . . . . . . . . . . . . . . . . . . . . Exploration | -11 -10 -10 -10 -9 -8 -8 -8 -8 -7 -7 -7 -7 -6 -6 -6 -6 -6 -5 -5 -5 -4 -3 -3 -3 -2 -2 -1 -1 -1 -1 ------------- Run | Yrd Mat Min Exi Min Mat Gar Mat Gar Fac Was Fac Gar Fac Gar Fac Low Dat Pro Fac Gar Fac Res Gar Res Res Gar Acc Gar Acc Com Turns Passed 26247 | 108 1394 1244 642 1391 2508 1670 2154 1094 408 841 672 1688 684 1896 1430 893 119 645 872 621 753 445 248 630 340 154 52 113 70 468 Spaces Moved 17941 | 57 687 493 375 492 1096 645 884 388 230 379 367 765 373 1013 834 736 93 501 613 512 1074 527 304 1458 967 385 151 237 236 1069 Core 22 | 4 . . . . . . . . . . . . . . . . . . . . . . . . . . . . . 18 Treads 6256 | 53 342 . . . 748 645 884 388 230 379 317 497 373 1013 387 . . . . . . . . . . . . . . . Legs 4074 | . . 474 375 470 189 . . . . . . . . . 447 736 93 501 613 176 . . . . . . . . . . Wheels 863 | . 345 19 . 22 159 . . . . . 50 268 . . . . . . . . . . . . . . . . . . Hover 2100 | . . . . . . . . . . . . . . . . . . . . 336 1074 527 163 . . . . . . . Flight 4626 | . . . . . . . . . . . . . . . . . . . . . . . 141 1458 967 385 151 237 236 1051 Fastest Speed 19 | 50 130 130 120 150 120 200 163 163 162 162 130 115 160 160 120 120 120 120 120 46 41 37 21 19 20 25 27 27 27 25 Average Speed 116 | 152 155 187 166 227 175 212 200 200 162 185 172 173 160 160 145 120 120 120 120 95 53 47 34 21 23 25 27 27 27 27 Slowest Speed 320 | 160 320 190 190 260 240 216 216 203 162 202 205 225 160 160 190 120 120 120 120 190 105 104 111 24 25 29 27 29 27 50 Overloaded Moves 280 | . . . . . . . . . . . . . . . . . . . . 80 51 90 59 . . . . . . . Propulsion Burnouts . | . . . . . . . . . . . . . . . . . . . . . . . . . . . . . . . Robots Hopped 46 | . . . . 7 7 . . . . . . . . . . . . . . . . . 4 9 1 5 . 1 4 8 Potential Cave-ins . | . . . . . . . . . . . . . . . . . . . . . . . . . . . . . . . Cave-ins Triggered . | . . . . . . . . . . . . . . . . . . . . . . . . . . . . . . . Exploration Rate (%) 47 | 4 97 82 71 64 81 62 54 44 6 89 18 78 12 63 16 90 73 65 22 51 24 15 59 35 23 66 6 50 9 35 Regions Visited 30 Branch Regions 7 Pre-discovered Areas 3 | . . . 1 1 . . . . . . . . . . . . 1 . . . . . . . . . . . . . Known Exits Taken 8 | . . . . . 1 . 1 . . . 1 . 1 . . . . . 1 . . 1 . . 1 . 1 . . . Unknown Exits Taken 12 | 1 1 1 1 1 . . . . . . . . . . 1 1 1 1 . . 1 . . 1 . . . . 1 . Scrap Searched 6 | . . 1 . 1 . . . . . . . . . . . 3 . 1 . . . . . . . . . . . . Spaces Dug 259 | . . . . . 3 15 12 23 . . . 34 . 77 7 . . . 13 . 1 12 . 39 10 . . . 2 11 Terrain Destroyed 688 | . . . . . 94 22 21 46 . . 11 62 4 109 10 . . . 47 . 1 16 . 40 32 63 . 41 2 67 Melee 122 | . . . . . 2 12 12 23 . . . . . . 7 . . . 5 . 1 1 . 37 9 . . . 2 11 Projectile 81 | . . . . . 3 . 9 . . . . 14 4 13 3 . . . 16 . . 15 . 3 1 . . . . . AOE 485 | . . . . . 89 10 . 23 . . 11 48 . 96 . . . . 26 . . . . . 22 63 . 41 . 56 Terrain Rammed . | . . . . . . . . . . . . . . . . . . . . . . . . . . . . . . . Walls Destroyed . | . . . . . . . . . . . . . . . . . . . . . . . . . . . . . . . Machines Disabled . | . . . . . . . . . . . . . . . . . . . . . . . . . . . . . . . Actions | -11 -10 -10 -10 -9 -8 -8 -8 -8 -7 -7 -7 -7 -6 -6 -6 -6 -6 -5 -5 -5 -4 -3 -3 -3 -2 -2 -1 -1 -1 -1 --------- Run | Yrd Mat Min Exi Min Mat Gar Mat Gar Fac Was Fac Gar Fac Gar Fac Low Dat Pro Fac Gar Fac Res Gar Res Res Gar Acc Gar Acc Com Total 21635 | 69 877 787 395 726 1462 810 1157 570 259 512 398 965 435 1172 967 745 100 528 696 635 1235 686 439 1685 1055 421 162 274 234 1179 Wait 1474 | . 57 263 . 198 82 44 154 72 . 99 5 14 4 48 3 . . . . 32 73 48 97 109 5 23 . 6 . 38 Move 17827 | 56 686 492 374 477 1082 644 883 387 230 378 367 764 372 1012 833 735 92 500 613 511 1073 526 295 1439 965 374 151 234 227 1055 Hop 44 | . . . . 7 7 . . . . . . . . . . . . . . . . . 4 9 1 5 . 1 4 6 Pick Up 294 | 3 29 . 8 7 48 8 8 5 4 6 2 9 11 8 19 2 . 2 14 10 14 16 5 22 17 3 3 3 . 8 Fast Attach 109 | 7 . . . 2 7 1 7 1 1 2 4 7 . 4 10 3 4 2 2 2 3 10 3 12 3 1 1 1 . 9 Attach 101 | . 4 . 2 . 11 1 . . 3 . 2 3 8 8 11 . . 1 4 5 6 12 7 2 3 . 2 2 1 3 Detach 43 | . . . 2 . 1 . 1 1 2 . 2 1 3 3 3 . . 1 . 5 4 6 2 2 . . . . . 4 Swap 288 | . 11 9 5 2 51 17 29 15 8 6 6 20 2 7 8 2 . 7 13 9 6 14 7 10 9 3 2 1 . 9 Drop 304 | . 10 5 4 5 51 10 15 4 6 11 5 17 8 6 18 3 4 4 15 12 12 12 3 22 21 3 3 2 . 13 Fire 745 | 3 77 13 . 27 112 44 44 25 5 8 4 109 20 73 45 . . 9 29 12 19 40 4 7 4 5 . 3 . 4 Melee 261 | . . . . . 3 33 15 50 . 2 . . . . 16 . . 2 6 . 3 2 . 51 27 4 . 15 2 30 Ram 19 | . 1 . . 1 2 . . . . . . . . . . . . . . . 15 . . . . . . . . . Kick 1 | . . . . . . . . . . . . . . . 1 . . . . . . . . . . . . . . . Crush 12 | . 2 . . . 5 . 1 . . . 1 . 3 . . . . . . . . . . . . . . . . . Escape Stasis 91 | . . . . . . 8 . 10 . . . 20 . . . . . . . 35 . . 12 . . . . 6 . . Rewire 7 | . . . . . . . . . . . . 1 . 1 . . . . . . 5 . . . . . . . . . Trap 5 | . . 5 . . . . . . . . . . . . . . . . . . . . . . . . . . . . Miscellaneous 10 | . . . . . . . . . . . . . 4 2 . . . . . 2 2 . . . . . . . . . Route ------- -11/Scrapyard -10/Materials (discovered 5 exits: [*Mat x3] / [*Min] / [*Sub]) -10/Mines (discovered 2 exits: [*Mat] / *Exi) -10/Exiles (discovered 2 exits: [*Min x2]) -9/Mines -8/Materials (discovered 3 exits: *Fac / *Sto / Gar) -8/Garrison (discovered 3 exits: *Mat x3) -8/Materials (discovered 3 exits: *Fac x2 / Gar) -8/Garrison -7/Factory -7/Waste -7/Factory (discovered 2 exits: [*Low] / Gar) -7/Garrison (discovered 3 exits: *Fac x3) -6/Factory (discovered 3 exits: *Fac x2 / Gar) -6/Garrison (discovered 2 exits: *Fac x2) -6/Factory -6/Lower Caves (discovered 2 exits: [*Low] / *Dat) -6/Data Miner -5/Proximity Caves -5/Factory (discovered 2 exits: [*Upp] / Gar) -5/Garrison -4/Factory (discovered 2 exits: *Res / Gar) -3/Research (discovered 3 exits: Res / Arm / Gar) -3/Garrison -3/Research (discovered 3 exits: *Res / Arm / [*Tes]) -2/Research -2/Garrison -1/Access -1/Garrison -1/Access -1/Command History --------- Turn | Location | Event 11 | -11/Scrapyard | Discovered new exit (range 15) 109 | -11/Scrapyard | Entered Materials 300 | -10/Materials | Build established: Mutant 326 | -10/Materials | Discovered new exit (range 14) 512 | -10/Materials | Discovered new exit (range 16) 573 | -10/Materials | Discovered new exit (range 8) 809 | -10/Materials | Derelicts attacked the area 929 | -10/Materials | Lost 4 parts (2n1u1w) 1103 | -10/Materials | Repaired Lgt. Treads 1197 | -10/Materials | Discovered new exit (range 7) 1243 | -10/Materials | Core integrity fell below 50% 1382 | -10/Materials | Discovered new exit (range 14) 1503 | -10/Materials | Entered Mines 1550 | -10/Mines | Learned Materials terminal intel 1630 | -10/Mines | Found a hidden stash of uninstalled traps 1817 | -10/Mines | Assembled infested the area 2193 | -10/Mines | Discovered new exit (range 7) 2598 | -10/Mines | Core integrity fell below 20% 2740 | -10/Mines | Discovered new exit (range 5) 2747 | -10/Mines | Entered Exiles 2774 | -10/Exiles | Discovered new exit (range 15) 2800 | -10/Exiles | Met 8R-AWN 2817 | -10/Exiles | Met EX-HEX 2865 | -10/Exiles | Met EX-DEC 2869 | -10/Exiles | Learned location of Zion (-7) 2890 | -10/Exiles | Met EX-BIN 2907 | -10/Exiles | Aligned with FarCom system 2908 | -10/Exiles | Given EX-Vault access code 2935 | -10/Exiles | Opened EX-Vault 2951 | -10/Exiles | Found Deploy-a-Sentry 2954 | -10/Exiles | Found Deploy-a-Sentry 2957 | -10/Exiles | Found Deploy-a-Sentry 2994 | -10/Exiles | Warned to stay clear of 0b10 Research branches 3363 | -10/Exiles | Discovered new exit (range 10) 3389 | -10/Exiles | Left Exiles lab with Deploy-a-Sentry 3389 | -10/Exiles | Entered Mines 3390 | -9/Mines | Learned location of Storage (-8) 3445 | -9/Mines | Excavation squad dispatched 3445 | -9/Mines | A large section of the Mines collapsed 3474 | -9/Mines | DAS Turret deployed 3695 | -9/Mines | Excavation squad dispatched 3858 | -9/Mines | DAS Turret deployed 4770 | -9/Mines | Discovered new exit (range 8) 4780 | -9/Mines | Entered Materials 4780 | -8/Materials | Evolved 4 slots: Propulsion x1, Utility x2, Weapon x1 4781 | -8/Materials | Loaded intel: 12 terminal locations 4812 | -8/Materials | DAS Turret deployed 5143 | -8/Materials | Garrison activated, responded to threat 5364 | -8/Materials | Build established: Scavenger-Skirmisher 5580 | -8/Materials | First assault squad dispatched 5933 | -8/Materials | Discovered new exit (range 7) 6526 | -8/Materials | Identified exit to Storage 6576 | -8/Materials | Central database locked down 6789 | -8/Materials | Discovered new exit (range 8) 6795 | -8/Materials | Build established: Scavenger-Mutant 7286 | -8/Materials | Identified exit to Garrison 7288 | -8/Materials | Entered Garrison 7416 | -8/Garrison | Installed Relay Interface Framework 7614 | -8/Garrison | Build established: Mutant 7636 | -8/Garrison | Triggered checkpoint 7750 | -8/Garrison | Garrison Relay disabled 7794 | -8/Garrison | Rescued a captive Derelict 7796 | -8/Garrison | Rescued a captive Derelict 7916 | -8/Garrison | Triggered checkpoint 7925 | -8/Garrison | Triggered checkpoint 7927 | -8/Garrison | Triggered checkpoint 8116 | -8/Garrison | Discovered new exit (range 13) 8441 | -8/Garrison | Discovered new exit (range 5) 8500 | -8/Garrison | Triggered checkpoint 8574 | -8/Garrison | Garrison Relay disabled 8946 | -8/Garrison | Discovered new exit (range 3) 8958 | -8/Garrison | Entered Materials 9122 | -8/Materials | Build established: Scavenger-Skirmisher 9840 | -8/Materials | Discovered new exit (range 16) 10117 | -8/Materials | Build established: Mutant 10956 | -8/Materials | Discovered new exit (range 16) 11010 | -8/Materials | Identified exit to Garrison 11112 | -8/Materials | Entered Garrison 11127 | -8/Garrison | Expanded RIF knowledge: Threat Obfuscation 11544 | -8/Garrison | Triggered checkpoint 11609 | -8/Garrison | Garrison Relay disabled 11814 | -8/Garrison | Triggered checkpoint 11818 | -8/Garrison | Triggered checkpoint 12099 | -8/Garrison | Garrison Relay disabled 12111 | -8/Garrison | Triggered checkpoint 12169 | -8/Garrison | Discovered new exit (range 3) 12206 | -8/Garrison | Entered Factory 12206 | -7/Factory | Evolved 2 slots: Propulsion x1, Utility x1 12215 | -7/Factory | Found Prototype Special Melee Weapon 12614 | -7/Factory | Sucked down chute 12614 | -7/Factory | Entered Waste 12621 | -7/Waste | Spotted C-40 Crusher 12726 | -7/Waste | Spotted C-40 Crusher 12734 | -7/Waste | 1 allies followed down the chute 12749 | -7/Waste | Spotted C-40 Crusher 12768 | -7/Waste | Spotted C-40 Crusher 12788 | -7/Waste | Spotted C-40 Crusher 12804 | -7/Waste | Warlord forces began an assault 12824 | -7/Waste | Allies destroyed C-40 Crusher 12831 | -7/Waste | Spotted C-40 Crusher 12850 | -7/Waste | Discovered new exit (range 15) 12867 | -7/Waste | Allies destroyed C-40 Crusher 12869 | -7/Waste | Allies destroyed C-40 Crusher 12900 | -7/Waste | Lost 8 allies 13326 | -7/Waste | Build established: Scavenger-Tank 13455 | -7/Waste | Entered Factory 13455 | -7/Factory | Accompanied by 12 allies 14050 | -7/Factory | Discovered new exit (range 6) 14105 | -7/Factory | Lost 4 allies 14127 | -7/Factory | Identified exit to Garrison 14127 | -7/Factory | Entered Garrison 14127 | -7/Garrison | Accompanied by 5 allies 14311 | -7/Garrison | Triggered checkpoint 14356 | -7/Garrison | Garrison Relay disabled 14441 | -7/Garrison | Triggered checkpoint 14472 | -7/Garrison | Triggered checkpoint 14502 | -7/Garrison | Garrison Relay disabled 14569 | -7/Garrison | Triggered checkpoint 14695 | -7/Garrison | Garrison Relay disabled 14796 | -7/Garrison | Discovered new exit (range 9) 14832 | -7/Garrison | Build established: Skirmisher 15008 | -7/Garrison | Discovered new exit (range 13) 15103 | -7/Garrison | Expanded RIF knowledge: Coupler Efficiency 15249 | -7/Garrison | Triggered checkpoint 15286 | -7/Garrison | Garrison Relay disabled 15625 | -7/Garrison | Triggered checkpoint 15627 | -7/Garrison | Discovered new exit (range 12) 15655 | -7/Garrison | Garrison Relay disabled 15659 | -7/Garrison | Build established: Bothacker-Tank 15729 | -7/Garrison | Expanded RIF knowledge: Threat Obfuscation 15815 | -7/Garrison | Entered Factory 15815 | -6/Factory | Evolved 2 slots: Weapon x2 15954 | -6/Factory | Discovered new exit (range 15) 16104 | -6/Factory | Identified 1B-0RG's Assimilator 16152 | -6/Factory | Assimilating Serf 5a into Collective. 16156 | -6/Factory | Assimilating Engineer 5a into Collective. 16187 | -6/Factory | Assimilating Engineer 5b into Collective. 16204 | -6/Factory | Assimilating Serf 5b into Collective. 16405 | -6/Factory | Garrison activated, responded to threat 16412 | -6/Factory | Discovered new exit (range 129) 16475 | -6/Factory | Identified exit to Garrison 16476 | -6/Factory | Lost 3 allies 16499 | -6/Factory | Entered Garrison 16499 | -6/Garrison | Accompanied by 1 ally 16589 | -6/Garrison | Assimilating Slayer 5a into Collective. 16591 | -6/Garrison | Assimilating Slayer 5b into Collective. 16693 | -6/Garrison | Triggered checkpoint 16978 | -6/Garrison | Triggered checkpoint 17167 | -6/Garrison | Build established: Scavenger-Tank 17241 | -6/Garrison | Triggered checkpoint 17275 | -6/Garrison | Triggered checkpoint 17336 | -6/Garrison | Discovered new exit (range 11) 17348 | -6/Garrison | Spotted B-90 Cyclops 17349 | -6/Garrison | Spotted B-90 Cyclops 17507 | -6/Garrison | Triggered checkpoint 17706 | -6/Garrison | Discovered new exit (range 8) 17839 | -6/Garrison | Triggered checkpoint 17915 | -6/Garrison | Garrison Relay disabled 18186 | -6/Garrison | Expanded RIF knowledge: Autoassimilate 18218 | -6/Garrison | Build established: Bothacker-Tank 18395 | -6/Garrison | Entered Factory 19378 | -6/Factory | Build established: Bothacker-Skirmisher 19408 | -6/Factory | Discovered new exit (range 48) 19615 | -6/Factory | Lost 3 allies 19631 | -6/Factory | Lost 4 parts (1p1u2w) 19661 | -6/Factory | Central database locked down 19709 | -6/Factory | Watched by a mysterious "MATRIX" hacker. 19825 | -6/Factory | Entered Lower Caves 20307 | -6/Lower Caves | Discovered new exit (range 3) 20706 | -6/Lower Caves | A Derelict revealed a hidden shortcut to meet someone special 20718 | -6/Lower Caves | Entered Data Miner 20721 | -6/Data Miner | Discovered new exit (range 6) 20736 | -6/Data Miner | Met Data Miner 20765 | -6/Data Miner | Learned location of Section 7 (-2) 20765 | -6/Data Miner | Acquired the access code to Warlord's prototype stash 20785 | -6/Data Miner | Received God Mode back door access code from Data Miner 20837 | -6/Data Miner | Entered Proximity Caves 21273 | -5/Proximity Caves | Discovered new exit (range 9) 21482 | -5/Proximity Caves | Entered Factory 21482 | -5/Factory | Evolved 2 slots: Propulsion x1, Utility x1 21826 | -5/Factory | Build established: Scavenger-Skirmisher 21924 | -5/Factory | Fabricated Antigrav Array? 22263 | -5/Factory | Discovered new exit (range 7) 22275 | -5/Factory | Garrison activated, responded to threat 22354 | -5/Factory | Identified exit to Garrison 22354 | -5/Factory | Entered Garrison 22372 | -5/Garrison | Garrison Relay disabled 22483 | -5/Garrison | Expanded RIF knowledge: Structural Interface 22710 | -5/Garrison | Triggered checkpoint 22717 | -5/Garrison | Garrison Relay disabled 22720 | -5/Garrison | Garrison Relay disabled 22837 | -5/Garrison | Assimilating Sentinel 6b into Collective. 22874 | -5/Garrison | Triggered checkpoint 22896 | -5/Garrison | Discovered new exit (range 10) 22938 | -5/Garrison | Triggered checkpoint 22950 | -5/Garrison | Garrison Relay disabled 22975 | -5/Garrison | Entered Factory 22975 | -4/Factory | Evolved 2 slots: Power x1, Propulsion x1 23023 | -4/Factory | Build established: Botlord-Mutant 23269 | -4/Factory | Lost 3 parts (1p2u) 23425 | -4/Factory | Identified exit to Garrison 23687 | -4/Factory | Discovered new exit (range 7) 23701 | -4/Factory | Assimilating Sage 7a into Collective. 23728 | -4/Factory | Entered Research 23728 | -3/Research | Accompanied by 1 ally 23728 | -3/Research | Evolved 2 slots: Propulsion x1, Utility x1 23729 | -3/Research | Identified exit to Armory 23740 | -3/Research | Found Prototype Processor 23851 | -3/Research | Spotted B-86 Titan 24000 | -3/Research | Lost 3 allies 24083 | -3/Research | Lost 4 parts (3n1u) 24117 | -3/Research | Discovered new exit (range 129) 24170 | -3/Research | Identified exit to Garrison 24173 | -3/Research | Entered Garrison 24188 | -3/Garrison | Expanded RIF knowledge: Zone Cloak 24193 | -3/Garrison | Spotted B-86 Titan 24193 | -3/Garrison | Spotted B-86 Titan 24311 | -3/Garrison | Triggered checkpoint 24343 | -3/Garrison | Triggered checkpoint 24353 | -3/Garrison | Identified Spectral Analyzer 24369 | -3/Garrison | Triggered checkpoint 24402 | -3/Garrison | Lost 7 parts (5n2u) 24419 | -3/Garrison | Discovered new exit (range 5) 24421 | -3/Garrison | Entered Research 24445 | -3/Research | Identified exit to DSF 24624 | -3/Research | Build established: Hacker-Sprinter 24639 | -3/Research | Repaired Imp. Diametric Drive 24703 | -3/Research | Repaired Lgt. Antimatter Reactor+ 24912 | -3/Research | System corruption reached 10% 25024 | -3/Research | Discovered new exit (range 23) 25031 | -3/Research | Discovered new exit (range 18) 25051 | -3/Research | Entered another Research area 25051 | -2/Research | Evolved 2 slots: Propulsion x1, Utility x1 25101 | -2/Research | Build established: Sprinter 25123 | -2/Research | Spotted B-90 Cyclops 25309 | -2/Research | Found Prototype Launcher 25309 | -2/Research | Identified Mni. Smartbomb Launcher 25311 | -2/Research | Found Mni. Smartbomb Launcher 25365 | -2/Research | Spotted B-90 Cyclops 25380 | -2/Research | Central database locked down 25391 | -2/Research | Identified exit to Garrison 25391 | -2/Research | Entered Garrison 25395 | -2/Garrison | Expanded RIF knowledge: Robot Detection 25431 | -2/Garrison | Triggered checkpoint 25442 | -2/Garrison | Garrison Relay disabled 25467 | -2/Garrison | Garrison Relay disabled 25488 | -2/Garrison | Found Relay Coupler [Proto] 25494 | -2/Garrison | Discovered new exit (range 10) 25501 | -2/Garrison | Triggered checkpoint 25505 | -2/Garrison | Found embedded Infiltrators 25545 | -2/Garrison | Entered Access 25545 | -1/Access | Evolved 2 slots: Utility x2 25597 | -1/Access | Identified exit to Garrison 25597 | -1/Access | Entered Garrison 25609 | -1/Garrison | Garrison Relay disabled 25630 | -1/Garrison | Spotted B-86 Titan 25643 | -1/Garrison | Rewired B-75 Beast 25682 | -1/Garrison | Spotted B-99 Colossus 25683 | -1/Garrison | Triggered checkpoint 25684 | -1/Garrison | Triggered checkpoint 25705 | -1/Garrison | Discovered new exit (range 12) 25710 | -1/Garrison | Entered Access 25730 | -1/Access | Build established: Botlord-Sprinter 25731 | -1/Access | Spotted B-99 Colossus 25779 | -1/Access | Discovered new exit (range 7) 25780 | -1/Access | Entered Command 25808 | -1/Command | Found Prototype Processor 25808 | -1/Command | Identified Exp. Terrain Scan Processor 25816 | -1/Command | Found Adv. Force Booster 26080 | -1/Command | Build established: Sprinter 26112 | -1/Command | Spotted B-99 Colossus 26189 | -1/Command | Spotted M Guard 26189 | -1/Command | Spotted M Guard 26195 | -1/Command | Spotted Combat Programmer 26195 | -1/Command | Spotted Combat Programmer 26206 | -1/Command | Met MAIN.C 26208 | -1/Command | 0b10 Conduit disabled 26233 | -1/Command | System corruption reached 10% 26238 | -1/Command | Core integrity fell below 50% 26245 | -1/Command | Core integrity fell below 20% 26248 | -1/Command | Destroyed by MAIN.C with High-powered Disruptor Cannon Last Messages --------------- 26234_ 0b10 Conduit collapses. 26234_ Lance destroyed. 26235_ 0b10 Conduit collapses. 26237_ Penetrated by EMDS Slug. 26237_ Imp. Diametric Drive destroyed. 26238_ 0b10 Conduit collapses. 26238_ Penetrated by EMDS Slug. 26240_ System corrupted: Heat flow error (+294). 26240_ Penetrated by EMDS Slug. 26241_ 0b10 Conduit collapses. 26241_ EMDS Slug penetrates Reinforced Barrier. 26242_ 0b10 Conduit collapses. 26243_ Penetrated by EMDS Slug. 26244_ 0b10 Conduit collapses. 26244_ Penetrated by EMDS Slug. 26245_ 0b10 Conduit collapses. 26246_ Knocked back. 26246_ Faulty Electron Diverter destroyed. 26246_ Penetrated by EMDS Slug. 26247_ 0b10 Conduit collapses. Map ----- +----------------------------------------------------+ | ?????????????????????????????????????????????????? | | ?????????????????????????????????????????????????? | | ?????????????????????????????????????????????????? | | ?????????????????????????????????????????????????? | | ?????????????????????????????????????????????????? | | ?????????????????????????????????????????????????? | | ?????????????????????????????????????????????????? | | ?????????????????????????????????????????????????? | | ?????????????????????????????????????????????????? | | ?????????????????????????????????????????????????? | | ?????????????????????????????????????????????????? | | ?????????????????????????????????????????????????? | | ?????????????????????????????????????????????????? | | ?????????????????????????????????????????????????? | | ?????????????????????????????????????????????????? | | ?????????????????????????????????????????????????? | | ?????????????????????????????????????????????????? | | ?????????????????????????????????????????????????? | | ???????#######################???????????????????? | | ???????#""""""" """ #???????????????????? | | ???????#"" "" #???????????????????? | | ???????#""""" " ##################### | | ???????#""""""""" / | | ???????#" " / | | ???????#"" "" /Y | | ???????#"" " @ Y################### | | ???????# p #?????????????????# | | ???????# " p MMM! #?????????????????# | | ???????# " MMM!] #?????????????????# | | ???????#"""" MMMp/ #?????????????????#// | | ???????# % p """#?????????????????# | | ???????# """#?????????????????# | | ???????# " #?????????????????# | | ???????# " #?????????????????# | | ???????" "" " #?????????????????# | | ???????" """ " """" #?????????????????# | | ???????" " " " " #?????????????????### | | ???????# """""" """ " #???????????????????? | | ???????# " """ " """"""#???????????????????? | | ???????# """ " " #???????????????????? | | ???????#######################???????????????????? | | ?????????????????????????????????????????????????? | | ?????????????????????????????????????????????????? | | ?????????????????????????????????????????????????? | | ?????????????????????????????????????????????????? | | ?????????????????????????????????????????????????? | | ?????????????????????????????????????????????????? | | ?????????????????????????????????????????????????? | | ?????????????????????????????????????????????????? | | ?????????????????????????????????????????????????? | +----------------------------------------------------+ Best States ------------- Heat Dissipation 83 Energy Generation 39 Energy Capacity 500 Matter Stores 396 Matter Capacity 400 Sight Range 24 Robot Scan Range 16 Terrain Scan Density 1010 Jamming Range 16 Additional Mass Support 12 Armor Coverage 600 Resistance: KI 20 Resistance: EM 15 Propulsion Shielding 66 Utility Shielding 66 Point Defense Rating 240 Phase Shifting 15 Evasion (%) 80 Targeting Accuracy 8 Core Analysis 6 Recoil Reduction 4 Force Boost 40 Offensive Hacking 12 Defensive Hacking 14 Relay Coupler Types 4 Relay Coupler Value 140 Authchip Count 1 Item Schematics ----------------- Aerolev Unit | -8/Materials | Scanalyzed Adv. Beam Cannon | -8/Materials | Scanalyzed Hacking Suite | -8/Materials | Scanalyzed Combat Drone Bay | -6/Data Miner | Free Lgt. Regenerative Plating | -6/Data Miner | Free Cld. Gravmag System | -6/Data Miner | Free Imp. Thermal Defense Suite | -6/Data Miner | Free Hvy. Gatling Laser | -6/Data Miner | Free Imp. Linear Gravjet | -6/Data Miner | Free Adv. Transmission Jammer | -6/Data Miner | Free Dispersion Rifle | -6/Data Miner | Free Antigrav Array | -6/Data Miner | Free Hyp. Railgun | -6/Data Miner | Free Robot Schematics ------------------ A-15 Conveyor | -6/Data Miner | Free R-10 Processor | -6/Data Miner | Free S-27 Virus | -6/Data Miner | Free G-50 Soldier | -6/Data Miner | Free H-77 Assassin | -6/Data Miner | Free Fabricated ------------ Antigrav Array | x1 | -5/Factory | Authchip Repaired ---------- Lgt. Treads | 7% | -10/Materials Imp. Diametric Drive | 13% | -3/Research Lgt. Antimatter Reactor | 18% | -3/Research Studied --------- Lgt. Treads | -8/Materials | Hacked Field Laser | -8/Materials | Hacked Assault Cannon | -8/Materials | Hacked Lgt. Nuclear Core | -8/Materials | Hacked Missile Launcher | -8/Materials | Hacked Imp. Grenade Launcher | -8/Materials | Hacked Arm. Treads | -8/Materials | Hacked Airjet | -8/Materials | Hacked Remote Datajack | -7/Factory | Hacked Cmb. Airjet | -6/Factory | Hacked Lgt. Antimatter Reactor | -3/Research | Hacked Nuclear Pulse Array | -2/Research | Hacked Alien Tech Used ----------------- None Achievements -------------- Hack The Planet Hackerman I, Locutus Satisfying Taming Of The Crushers Versatile Watcher Gambling Challenges ------------ None Game ------ Seed PointFlyingDoomcannon Manual? 0 Play Time 05:06:56 Cumulative 307.5 hours Start 2026.01.20 @ 12:20:01 End 2026.01.20 @ 17:41:48 Sessions 1 Manual Loads 0 Difficulty Rogue Special Mode None Game No. 177 Rogue 173 Adventurer 4 Explorer 0 Win Type - Total 10 Types 8/0/2/0/0/0/0/0/0/0 Lore% 87 Gallery% 76 Achievement% 57 Wizard Run 0 Options --------- Layout 1 ASCII 0 Keyboard 1 Movement Numpad Keybinds 1 Fullscreen 1 Font 24/Smallcaps Map View 50x35 Zoom Use 0% Tactical HUD 1 Map Filters NONE Filters NONE Steam 1 RUN: 0cc0fa70-5902-4016-a1e9-c79c5726728e